,Portfolio,Expense Area,Cost Centre,Expense Type,Account Code,Amount,Supplier Name,SupplierId,Pay Date,Transaction No.
INSERTED DETAIL,Resources & Corporate Governance ,Toilet Cleaning,WBC01,Materials,0303,525.00,Arco Limited,100015,12/06/2014,10202909
INSERTED DETAIL,Resources & Corporate Governance ,Domestic Waste Collection,WWC00,Vehicle Repair and Maintenance,0200,191.67,Arrow Engineering Supply Co Ltd,100016,19/06/2014,10203307
INSERTED DETAIL,Resources & Corporate Governance ,TREE WORKS,WGM01,New Equipment,0300,7.00,Arrow Engineering Supply Co Ltd,100016,19/06/2014,10203307
INSERTED DETAIL,Resources & Corporate Governance ,Grounds Maintenance,WGM00,Materials,0303,16.48,Arrow Engineering Supply Co Ltd,100016,19/06/2014,10203307
INSERTED DETAIL,Resources & Corporate Governance,Housing Maintenance,WHM00,Materials,0303,10.56,Arrow Engineering Supply Co Ltd,100016,19/06/2014,10203307
INSERTED DETAIL,Resources & Corporate Governance ,Street Cleansing,WSC00,Materials,0303,22.68,Arrow Engineering Supply Co Ltd,100016,19/06/2014,10203307
INSERTED DETAIL,Resources & Corporate Governance ,Grounds Maintenance,WGM00,Tools,0304,362.00,Arrow Engineering Supply Co Ltd,100016,19/06/2014,10203307
INSERTED DETAIL,Resources & Corporate Governance ,TREE WORKS,WGM01,Tools,0304,510.20,Arrow Engineering Supply Co Ltd,100016,19/06/2014,10203307
INSERTED DETAIL,Resources & Corporate Governance ,Grounds Maintenance,WGM00,Materials,0303,700.00,A J Plants,100029,05/06/2014,10202520
INSERTED DETAIL,Housing Revenue Account ,Repairs and Maintenance - Void works,UMR09,R&M External Contractors,0100,2663.88,AWM Electrical Contractors Ltd,100051,12/06/2014,10203113
INSERTED DETAIL,Capital Programme ,Rewiring,HCE20,Capital Contract Payments,5000,384.30,AWM Electrical Contractors Ltd,100051,12/06/2014,10203113
INSERTED DETAIL,Housing Revenue Account ,Unplanned Maintenance and Repair,UMR00,R&M External Contractors,0100,672.12,AWM Electrical Contractors Ltd,100051,05/06/2014,10203114
INSERTED DETAIL,Capital Programme ,Disabled Adaptations,HCR01,Capital Contract Payments,5000,45.97,AWM Electrical Contractors Ltd,100051,05/06/2014,10203114
INSERTED DETAIL,Housing Revenue Account ,Unplanned Maintenance and Repair,UMR00,R&M External Contractors,0100,2500.33,AWM Electrical Contractors Ltd,100051,05/06/2014,10203115
INSERTED DETAIL,Housing Revenue Account ,Unplanned Maintenance and Repair,UMR00,R&M External Contractors,0100,1036.48,AWM Electrical Contractors Ltd,100051,19/06/2014,10203527
INSERTED DETAIL,Housing Revenue Account ,Unplanned Maintenance and Repair,UMR00,R&M External Contractors,0100,2307.67,AWM Electrical Contractors Ltd,100051,19/06/2014,10203528
INSERTED DETAIL,Housing Revenue Account ,Repairs and Maintenance - Void works,UMR09,R&M External Contractors,0100,459.47,AWM Electrical Contractors Ltd,100051,26/06/2014,10203733
INSERTED DETAIL,Housing Revenue Account ,Repairs and Maintenance - Void works,UMR09,R&M External Contractors,0100,1916.51,AWM Electrical Contractors Ltd,100051,26/06/2014,10204003
INSERTED DETAIL,Housing Revenue Account ,Repairs and Maintenance - Void works,UMR09,R&M External Contractors,0100,669.29,AWM Electrical Contractors Ltd,100051,26/06/2014,10204006
INSERTED DETAIL,Capital Programme ,Kitchen Modifications,HIK10,Capital Contract Payments,5000,1418.00,A C E Carpentry & Joinery Contractors Ltd,100085,19/06/2014,10203421
INSERTED DETAIL,Housing Revenue Account ,Unplanned Maintenance and Repair,UMR00,R&M External Contractors,0100,1458.11,A C E Carpentry & Joinery Contractors Ltd,100085,19/06/2014,10203650
INSERTED DETAIL,Resources & Corporate Governance ,Grounds Maintenance,WGM00,Materials,0303,1170.00,Banks Amenity Products Ltd,100133,19/06/2014,10203568
INSERTED DETAIL,Resources & Corporate Governance ,Council Tax and NNDR Collection,CTX01,External Contractor & Operator,0742,229.50,Bristow & Sutor,100159,19/06/2014,10203342
INSERTED DETAIL,Resources & Corporate Governance ,Council Tax and NNDR Collection,CTX01,External Contractor & Operator,0742,300.00,Bristow & Sutor,100159,26/06/2014,10203656
INSERTED DETAIL,Resources & Corporate Governance ,Council Tax and NNDR Collection,CTX01,External Contractor & Operator,0742,303.47,Bristow & Sutor,100159,26/06/2014,10203861
INSERTED DETAIL,Resources & Corporate Governance ,WSU Depot,WDP00,Telephone Expenses,0371,851.33,Bt Redcare,100221,05/06/2014,10202543
INSERTED DETAIL,Sustainable Inclusive Communities,CL Grants,CGS00,Grants To Voluntary Organisations,0720,2000.00,Benn Partnership Centre,100235,19/06/2014,10203487
INSERTED DETAIL,Resources & Corporate Governance ,Domestic Waste Collection,WWC00,Vehicle Repair and Maintenance,0200,1935.00,Charles Watts Engineering Ltd,100302,12/06/2014,10203155
INSERTED DETAIL,Resources & Corporate Governance,Corporate Property R&M,CPA01,R&M External Contractors,0100,718.00,Chillaire Service & Maintenance Ltd,100305,26/06/2014,10203767
INSERTED DETAIL,Resources & Corporate Governance,Corporate Property R&M,CPA01,R&M External Contractors,0100,4980.03,Chillaire Service & Maintenance Ltd,100305,26/06/2014,10203853
INSERTED DETAIL,Resources & Corporate Governance,Housing Maintenance,WHM00,External Contractor & Operator,0742,1416.00,Clements Plant & Tool Hire Ltd,100309,19/06/2014,10203120
INSERTED DETAIL,Resources & Corporate Governance,Housing Maintenance,WHM00,External Contractor & Operator,0742,425.01,Cwikskip (Tailby Brack Ltd),100325,19/06/2014,10202751
INSERTED DETAIL,Sustainable Environment ,Clinical Waste,REF04,External Contractor & Operator,0742,440.96,OCS Group UK Ltd t/a Cannon,100436,12/06/2014,10203154
INSERTED DETAIL,Resources & Corporate Governance ,Domestic Waste Collection,WWC00,Vehicle Repair and Maintenance,0200,451.18,Dennis Eagle Ltd,100559,05/06/2014,10202849
INSERTED DETAIL,Resources & Corporate Governance ,Domestic Waste Collection,WWC00,Vehicle Repair and Maintenance,0200,451.18,Dennis Eagle Ltd,100559,12/06/2014,10202961
INSERTED DETAIL,Resources & Corporate Governance ,Domestic Waste Collection,WWC00,Vehicle Repair and Maintenance,0200,1494.14,Dennis Eagle Ltd,100559,12/06/2014,10203218
INSERTED DETAIL,Resources & Corporate Governance ,Domestic Waste Collection,WWC00,Vehicle Repair and Maintenance,0200,1224.44,Dennis Eagle Ltd,100559,19/06/2014,10203405
INSERTED DETAIL,Resources & Corporate Governance,Corporate Property R&M,CPA01,R&M External Contractors,0100,427.50,Dunchurch Services (Rugby) Ltd,100565,12/06/2014,10202888
INSERTED DETAIL,Resources & Corporate Governance,Corporate Property R&M,CPA01,R&M External Contractors,0100,746.00,Dunchurch Services (Rugby) Ltd,100565,26/06/2014,10203668
INSERTED DETAIL,Capital Programme ,Private Sector Renovation Loans,REN00,Capital Contract Payments,5000,3801.08,Bob Doyle,100575,19/06/2014,10203241
INSERTED DETAIL,Capital Programme ,Bathroom Modifications,HIS01,Capital Contract Payments,5000,2957.97,JADA Building & Maintenance Services Ltd,100583,05/06/2014,10202902
INSERTED DETAIL,Capital Programme ,Bathroom Modifications,HIS01,Capital Contract Payments,5000,12475.00,JADA Building & Maintenance Services Ltd,100583,05/06/2014,10202979
INSERTED DETAIL,Capital Programme ,Bathroom Modifications,HIS01,Capital Contract Payments,5000,4990.00,JADA Building & Maintenance Services Ltd,100583,05/06/2014,10203111
INSERTED DETAIL,Capital Programme ,Bathroom Modifications,HIS01,Capital Contract Payments,5000,2495.00,JADA Building & Maintenance Services Ltd,100583,12/06/2014,10203226
INSERTED DETAIL,Capital Programme ,Bathroom Modifications,HIS01,Capital Contract Payments,5000,8182.00,JADA Building & Maintenance Services Ltd,100583,12/06/2014,10203277
INSERTED DETAIL,Capital Programme ,Bathroom Modifications,HIS01,Capital Contract Payments,5000,14970.00,JADA Building & Maintenance Services Ltd,100583,19/06/2014,10203412
INSERTED DETAIL,Capital Programme ,Bathroom Modifications,HIS01,Capital Contract Payments,5000,2495.00,JADA Building & Maintenance Services Ltd,100583,19/06/2014,10203524
INSERTED DETAIL,Capital Programme ,Bathroom Modifications,HIS01,Capital Contract Payments,5000,2620.68,JADA Building & Maintenance Services Ltd,100583,19/06/2014,10203525
INSERTED DETAIL,Housing Revenue Account ,Repairs and Maintenance - Void works,UMR09,R&M External Contractors,0100,960.00,Dulux Decorator Centres,100597,26/06/2014,10203275
INSERTED DETAIL,Sustainable Inclusive Communities,CL Grants,CGS00,Grants To Voluntary Organisations,0720,9621.13,Easenhall Parish Council,100616,19/06/2014,10203486
INSERTED DETAIL,Resources & Corporate Governance,Corporate Property Central Utilities,CPA02,Gas,0131,492.56,ESPO,100641,12/06/2014,10203186
INSERTED DETAIL,Housing Revenue Account ,Albert Square AP,AGP20,Gas,0131,1228.24,ESPO,100641,19/06/2014,10203472
INSERTED DETAIL,Housing Revenue Account ,Lesley Souter House AP,AGP16,Gas,0131,1040.07,ESPO,100641,19/06/2014,10203473
INSERTED DETAIL,Housing Revenue Account ,Tanser Court AP,AGP17,Gas,0131,1105.23,ESPO,100641,19/06/2014,10203474
INSERTED DETAIL,Resources & Corporate Governance,Corporate Property Central Utilities,CPA02,Gas,0131,1282.80,ESPO,100641,26/06/2014,10203476
INSERTED DETAIL,Resources & Corporate Governance,Corporate Property Central Utilities,CPA02,Gas,0131,1096.02,ESPO,100641,26/06/2014,10203480
INSERTED DETAIL,Sustainable Environment,Crematorium,CRM00,Gas,0131,2168.32,ESPO,100641,19/06/2014,10203482
INSERTED DETAIL,Resources & Corporate Governance,Corporate Property Central Utilities,CPA02,Gas,0131,1591.68,ESPO,100641,26/06/2014,10203743
INSERTED DETAIL,Sustainable Environment,Crematorium,CRM00,Gas,0131,1645.98,ESPO,100641,26/06/2014,10203747
INSERTED DETAIL,Resources & Corporate Governance,Housing Maintenance,WHM00,Agency Staff,0003,440.67,First Personnel Group Plc,100807,05/06/2014,10202592
INSERTED DETAIL,Resources & Corporate Governance ,Street Cleansing,WSC00,Vehicle Repair and Maintenance,0200,582.66,Fuchs Lubricants (Uk) Plc,100832,05/06/2014,10202519
INSERTED DETAIL,Resources & Corporate Governance ,Street Cleansing,WSC00,Vehicle Repair and Maintenance,0200,1747.60,Fuchs Lubricants (Uk) Plc,100832,19/06/2014,10203394
INSERTED DETAIL,,Balance Sheet,BS,Car Leasing Scheme,9244,-425.00,Lex Autolease Ltd,100844,21/01/2014,10196895
INSERTED DETAIL,,Balance Sheet,BS,Car Leasing Scheme,9244,-656.74,Lex Autolease Ltd,100844,28/03/2014,10200380
INSERTED DETAIL,,Balance Sheet,BS,Car Leasing Scheme,9244,1085.34,Lex Autolease Ltd,100844,02/05/2014,10201729
INSERTED DETAIL,,Balance Sheet,BS,Car Leasing Scheme,9244,646.00,Lex Autolease Ltd,100844,17/04/2014,10202489
INSERTED DETAIL,Economy Development & Culture,Art Gallery and Museum,AGM00,New Equipment,0300,134.14,Greenham,100890,05/06/2014,10202958
INSERTED DETAIL,Economy Development & Culture,Art Gallery and Museum,AGM00,Other Consumables,0351,281.14,Greenham,100890,05/06/2014,10202958
INSERTED DETAIL,Economy Development & Culture,AGM Conservation/Documentation,AGM01,Other Consumables,0351,5.54,Greenham,100890,05/06/2014,10202958
INSERTED DETAIL,Resources & Corporate Governance ,Human Resources Centralised Services,RES31,Recruitment Expenses,0012,1135.00,TMP (UK) LTD,100972,05/06/2014,10202852
INSERTED DETAIL,Resources & Corporate Governance ,Human Resources Centralised Services,RES31,Recruitment Expenses,0012,693.32,TMP (UK) LTD,100972,05/06/2014,10202854
INSERTED DETAIL,Resources & Corporate Governance ,Human Resources Centralised Services,RES31,Recruitment Expenses,0012,571.76,TMP (UK) LTD,100972,26/06/2014,10203267
INSERTED DETAIL,Resources & Corporate Governance,Corporate Property R&M,CPA01,R&M External Contractors,0100,548.46,ThyssenKrupp Elevator UK,100985,19/06/2014,10203233
INSERTED DETAIL,Housing Revenue Account ,Supervision and Management General,MAN00,Conference & Seminar Fees,0401,600.00,Housemark,101106,05/06/2014,10202906
INSERTED DETAIL,Sustainable Inclusive Communities,Housing Benefit Administration,HBA00,Ref. Books Journals & Magazines,0353,495.00,Institute Of Revenues Rating & Valuation,101124,05/06/2014,10202798
INSERTED DETAIL,Sustainable Environment,Regulatory Services,REG00,External Contractor & Operator,0742,690.00,Applied Geology,101155,05/06/2014,10202966
INSERTED DETAIL,Resources & Corporate Governance ,Street Cleansing,WSC00,Materials,0303,434.00,Imperial Polythene Products Limited,101157,05/06/2014,10202579
INSERTED DETAIL,Housing Revenue Account ,Supervision and Management General,MAN00,Premises Related Insurance Premiums,0180,5991.23,Jardine Lloyd Thompson,101192,05/06/2014,10203026
INSERTED DETAIL,Sustainable Inclusive Communities,House Purchase and Improvement Loans,HPL00,Other Insurance Premiums,0440,800.55,Jardine Lloyd Thompson,101192,05/06/2014,10203026
INSERTED DETAIL,Housing Revenue Account ,Supervision and Management General,MAN00,Reimbursements - Outside Scope,1107,1816.30,Jardine Lloyd Thompson,101192,05/06/2014,10203026
INSERTED DETAIL,Sustainable Environment ,Parks,PKS00,External Contractor & Operator,0742,3250.00,Kernock Park Plants,101204,19/06/2014,10203304
INSERTED DETAIL,Resources & Corporate Governance,Housing Maintenance,WHM00,External Contractor & Operator,0742,3976.07,Clews Recycling Limited,101213,12/06/2014,10201797
INSERTED DETAIL,Resources & Corporate Governance,Housing Maintenance,WHM00,External Contractor & Operator,0742,471.04,Clews Recycling Limited,101213,12/06/2014,10201829
INSERTED DETAIL,Resources & Corporate Governance ,Grounds Maintenance,WGM00,External Contractor & Operator,0742,7484.00,K A Hicks,101216,19/06/2014,10203255
INSERTED DETAIL,,User Balance Sheet Cost Centre,BSU,Revenue Section Agreements,9865,16624.36,Marton Parish Council,101285,26/06/2014,10203834
INSERTED DETAIL,Resources & Corporate Governance,Housing Maintenance,WHM00,Materials,0303,464.70,Melbros Ltd,101291,26/06/2014,10200114
INSERTED DETAIL,Resources & Corporate Governance,Housing Maintenance,WHM00,Materials,0303,630.00,Melbros Ltd,101291,12/06/2014,10200115
INSERTED DETAIL,Resources & Corporate Governance,Housing Maintenance,WHM00,Materials,0303,497.01,Melbros Ltd,101291,12/06/2014,10200997
INSERTED DETAIL,Resources & Corporate Governance,Housing Maintenance,WHM00,Materials,0303,602.99,Melbros Ltd,101291,19/06/2014,10201442
INSERTED DETAIL,Resources & Corporate Governance,Housing Maintenance,WHM00,Materials,0303,508.10,Melbros Ltd,101291,19/06/2014,10201454
INSERTED DETAIL,Resources & Corporate Governance,Housing Maintenance,WHM00,Materials,0303,472.26,Melbros Ltd,101291,26/06/2014,10202423
INSERTED DETAIL,Resources & Corporate Governance,Housing Maintenance,WHM00,Materials,0303,975.07,Melbros Ltd,101291,12/06/2014,10202466
INSERTED DETAIL,Resources & Corporate Governance,Housing Maintenance,WHM00,Materials,0303,773.83,Melbros Ltd,101291,26/06/2014,10202633
INSERTED DETAIL,Resources & Corporate Governance,Housing Maintenance,WHM00,Materials,0303,604.00,Melbros Ltd,101291,26/06/2014,10203049
INSERTED DETAIL,Resources & Corporate Governance ,Domestic Waste Collection,WWC00,Vehicle Repair and Maintenance,0200,960.17,Noden Truck Centre Ltd,101368,05/06/2014,10202746
INSERTED DETAIL,Resources & Corporate Governance ,Street Cleansing,WSC00,Vehicle Repair and Maintenance,0200,736.70,Noden Truck Centre Ltd,101368,12/06/2014,10203166
INSERTED DETAIL,Resources & Corporate Governance ,Domestic Waste Collection,WWC00,Vehicle Repair and Maintenance,0200,1572.04,Noden Truck Centre Ltd,101368,19/06/2014,10203453
INSERTED DETAIL,Economy Development & Culture,Visitor Centre,VSC00,Events Tickets - Zero Rated,1405,983.12,National Express Ltd,101392,12/06/2014,10203107
INSERTED DETAIL,Housing Revenue Account ,Sheltered Housing,AGP00,Telephone Expenses,0371,3.99,EE Ltd t/a Orange Personal Communications,101404,05/06/2014,10201511
INSERTED DETAIL,Sustainable Environment,Regulatory Services,REG00,Telephone Expenses,0371,7.75,EE Ltd t/a Orange Personal Communications,101404,05/06/2014,10201511
INSERTED DETAIL,Resources & Corporate Governance ,WSU Depot,WDP00,Telephone Expenses,0371,483.85,EE Ltd t/a Orange Personal Communications,101404,05/06/2014,10201511
INSERTED DETAIL,Sustainable Environment,Regulatory Services,REG00,Telephone Expenses,0371,7.75,EE Ltd t/a Orange Personal Communications,101404,05/06/2014,10202542
INSERTED DETAIL,Resources & Corporate Governance ,WSU Depot,WDP00,Telephone Expenses,0371,439.64,EE Ltd t/a Orange Personal Communications,101404,05/06/2014,10202542
INSERTED DETAIL,Resources & Corporate Governance ,Domestic Waste Collection,WWC00,Vehicle Running Costs,0201,560.00,Post Office Ltd,101429,26/06/2014,10203055
INSERTED DETAIL,Resources & Corporate Governance ,Highways,WHG00,Vehicle Running Costs,0201,815.00,Post Office Ltd,101429,19/06/2014,10203542
INSERTED DETAIL,Resources & Corporate Governance ,General Financial Services,GFS00,Software Maintenance,0374,5131.00,Puma Computer Systems Ltd,101436,05/06/2014,10203078
INSERTED DETAIL,Sustainable Inclusive Communities,Sewage Disposal Plant,SDP00,R&M External Contractors,0100,520.28,PJT Pumping Services,101438,12/06/2014,10203361
INSERTED DETAIL,Sustainable Environment ,Parks,PKS00,R&M External Contractors,0100,512.52,PJT Pumping Services,101438,19/06/2014,10203362
INSERTED DETAIL,Resources & Corporate Governance ,Human Resources Centralised Services,RES31,Training fees,0011,566.16,Patricia Cresswell & Associates,101494,26/06/2014,10204020
INSERTED DETAIL,Resources & Corporate Governance,Central Business Support Services,CSS15,Photocopying,0354,550.69,Xerox (UK) Ltd,101502,19/06/2014,10203336
INSERTED DETAIL,Resources & Corporate Governance,Housing Maintenance,WHM00,External Contractor & Operator,0742,1199.67,Lafarge Aggregates Limited,101503,19/06/2014,10202383
INSERTED DETAIL,Capital Programme ,Disabled Adaptations,HCR01,Capital Contract Payments,5000,1800.00,Reeds Plumbing & Heating Contractors Ltd,101504,05/06/2014,10202905
INSERTED DETAIL,Capital Programme ,Bathroom Modifications,HIS01,Capital Contract Payments,5000,4720.00,Reeds Plumbing & Heating Contractors Ltd,101504,05/06/2014,10202905
INSERTED DETAIL,Capital Programme ,Bathroom Modifications,HIS01,Capital Contract Payments,5000,9260.00,Reeds Plumbing & Heating Contractors Ltd,101504,12/06/2014,10203230
INSERTED DETAIL,Resources & Corporate Governance ,Domestic Waste Collection,WWC00,Vehicle Repair and Maintenance,0200,565.00,Rugby Mobile Windscreens,101520,05/06/2014,10202808
INSERTED DETAIL,Housing Revenue Account ,Property Maintenance,MAN23,Agency Staff,0003,485.63,Rugby Recruitment Services Ltd,101521,05/06/2014,10202973
INSERTED DETAIL,Housing Revenue Account ,Property Maintenance,MAN23,Agency Staff,0003,483.42,Rugby Recruitment Services Ltd,101521,26/06/2014,10203545
INSERTED DETAIL,Housing Revenue Account ,Property Maintenance,MAN23,Agency Staff,0003,427.35,Rugby Recruitment Services Ltd,101521,26/06/2014,10203815
INSERTED DETAIL,Economy Development & Culture,Art Gallery and Museum,AGM00,Postage & Distribution,0370,66.58,Royal Mail,101554,05/06/2014,10202248
INSERTED DETAIL,Economy Development & Culture,Building Control Services,BCS00,Postage & Distribution,0370,0.34,Royal Mail,101554,05/06/2014,10202248
INSERTED DETAIL,Economy Development & Culture,Building Control Services Non-Fee Earning Account,BCS01,Postage & Distribution,0370,0.34,Royal Mail,101554,05/06/2014,10202248
INSERTED DETAIL,Economy Development & Culture,Building Regulation Fee Earning Account,BCS99,Postage & Distribution,0370,6.18,Royal Mail,101554,05/06/2014,10202248
INSERTED DETAIL,Economy Development & Culture,Car Parks General,CPK01,Postage & Distribution,0370,54.20,Royal Mail,101554,05/06/2014,10202248
INSERTED DETAIL,Resources & Corporate Governance,Central Business Support Services,CSS15,Postage & Distribution,0370,136.35,Royal Mail,101554,05/06/2014,10202248
INSERTED DETAIL,Resources & Corporate Governance ,Council Tax and NNDR Collection,CTX01,Postage & Distribution,0370,341.03,Royal Mail,101554,05/06/2014,10202248
INSERTED DETAIL,Economy Development & Culture,Decrim. of Car Parking on street parking,DPE02,Postage & Distribution,0370,216.78,Royal Mail,101554,05/06/2014,10202248
INSERTED DETAIL,Resources & Corporate Governance ,Electoral Registration,ERG00,Postage & Distribution,0370,87.18,Royal Mail,101554,05/06/2014,10202248
INSERTED DETAIL,Sustainable Inclusive Communities,Housing Benefit Administration,HBA00,Postage & Distribution,0370,112.04,Royal Mail,101554,05/06/2014,10202248
INSERTED DETAIL,Housing Revenue Account ,Supervision and Management General,MAN00,Postage & Distribution,0370,41.10,Royal Mail,101554,05/06/2014,10202248
INSERTED DETAIL,Economy Development & Culture,Planning General/Income,PLN00,Postage & Distribution,0370,102.03,Royal Mail,101554,05/06/2014,10202248
INSERTED DETAIL,Resources & Corporate Governance ,General Administration,WAD00,Postage & Distribution,0370,1.47,Royal Mail,101554,05/06/2014,10202248
INSERTED DETAIL,Economy Development & Culture,Art Gallery and Museum,AGM00,Postage & Distribution,0370,2.70,Royal Mail,101554,12/06/2014,10202827
INSERTED DETAIL,Economy Development & Culture,Building Control Services,BCS00,Postage & Distribution,0370,0.64,Royal Mail,101554,12/06/2014,10202827
INSERTED DETAIL,Economy Development & Culture,Building Control Services Non-Fee Earning Account,BCS01,Postage & Distribution,0370,0.64,Royal Mail,101554,12/06/2014,10202827
INSERTED DETAIL,Economy Development & Culture,Building Regulation Fee Earning Account,BCS99,Postage & Distribution,0370,11.46,Royal Mail,101554,12/06/2014,10202827
INSERTED DETAIL,Economy Development & Culture,Car Parks General,CPK01,Postage & Distribution,0370,27.38,Royal Mail,101554,12/06/2014,10202827
INSERTED DETAIL,Resources & Corporate Governance,Central Business Support Services,CSS15,Postage & Distribution,0370,424.35,Royal Mail,101554,12/06/2014,10202827
INSERTED DETAIL,Resources & Corporate Governance ,Council Tax and NNDR Collection,CTX01,Postage & Distribution,0370,827.91,Royal Mail,101554,12/06/2014,10202827
INSERTED DETAIL,Economy Development & Culture,Decrim. of Car Parking on street parking,DPE02,Postage & Distribution,0370,109.52,Royal Mail,101554,12/06/2014,10202827
INSERTED DETAIL,Resources & Corporate Governance ,Electoral Registration,ERG00,Postage & Distribution,0370,70.09,Royal Mail,101554,12/06/2014,10202827
INSERTED DETAIL,Sustainable Inclusive Communities,Housing Benefit Administration,HBA00,Postage & Distribution,0370,321.92,Royal Mail,101554,12/06/2014,10202827
INSERTED DETAIL,Housing Revenue Account ,Supervision and Management General,MAN00,Postage & Distribution,0370,87.01,Royal Mail,101554,12/06/2014,10202827
INSERTED DETAIL,Economy Development & Culture,Planning General/Income,PLN00,Postage & Distribution,0370,297.62,Royal Mail,101554,12/06/2014,10202827
INSERTED DETAIL,Economy Development & Culture,Visitor Centre,VSC00,Postage & Distribution,0370,4.41,Royal Mail,101554,12/06/2014,10202827
INSERTED DETAIL,Resources & Corporate Governance ,General Administration,WAD00,Postage & Distribution,0370,3.92,Royal Mail,101554,12/06/2014,10202827
INSERTED DETAIL,Economy Development & Culture,Art Gallery and Museum,AGM00,Postage & Distribution,0370,7.94,Royal Mail,101554,26/06/2014,10203414
INSERTED DETAIL,Economy Development & Culture,Building Control Services,BCS00,Postage & Distribution,0370,0.39,Royal Mail,101554,26/06/2014,10203414
INSERTED DETAIL,Economy Development & Culture,Building Control Services Non-Fee Earning Account,BCS01,Postage & Distribution,0370,0.39,Royal Mail,101554,26/06/2014,10203414
INSERTED DETAIL,Economy Development & Culture,Building Regulation Fee Earning Account,BCS99,Postage & Distribution,0370,7.07,Royal Mail,101554,26/06/2014,10203414
INSERTED DETAIL,Economy Development & Culture,Car Parks General,CPK01,Postage & Distribution,0370,82.29,Royal Mail,101554,26/06/2014,10203414
INSERTED DETAIL,Resources & Corporate Governance,Central Business Support Services,CSS15,Postage & Distribution,0370,360.52,Royal Mail,101554,26/06/2014,10203414
INSERTED DETAIL,Resources & Corporate Governance ,Council Tax and NNDR Collection,CTX01,Postage & Distribution,0370,343.11,Royal Mail,101554,26/06/2014,10203414
INSERTED DETAIL,Economy Development & Culture,Decrim. of Car Parking on street parking,DPE02,Postage & Distribution,0370,329.15,Royal Mail,101554,26/06/2014,10203414
INSERTED DETAIL,Resources & Corporate Governance ,Electoral Registration,ERG00,Postage & Distribution,0370,7.88,Royal Mail,101554,26/06/2014,10203414
INSERTED DETAIL,Sustainable Inclusive Communities,Housing Benefit Administration,HBA00,Postage & Distribution,0370,229.21,Royal Mail,101554,26/06/2014,10203414
INSERTED DETAIL,Housing Revenue Account ,Supervision and Management General,MAN00,Postage & Distribution,0370,60.19,Royal Mail,101554,26/06/2014,10203414
INSERTED DETAIL,Economy Development & Culture,Planning General/Income,PLN00,Postage & Distribution,0370,446.66,Royal Mail,101554,26/06/2014,10203414
INSERTED DETAIL,Economy Development & Culture,Visitor Centre,VSC00,Postage & Distribution,0370,0.49,Royal Mail,101554,26/06/2014,10203414
INSERTED DETAIL,Resources & Corporate Governance ,General Administration,WAD00,Postage & Distribution,0370,14.29,Royal Mail,101554,26/06/2014,10203414
INSERTED DETAIL,Resources & Corporate Governance,Central Business Support Services,CSS15,Postage & Distribution,0370,84.80,Royal Mail,101554,26/06/2014,10203501
INSERTED DETAIL,Resources & Corporate Governance ,European Elections,ELC04,Postage & Distribution,0370,3174.35,Royal Mail,101554,26/06/2014,10203501
INSERTED DETAIL,Resources & Corporate Governance,Corporate Property Central Utilities,CPA02,Water Services,0143,871.85,Severn Trent Water Ltd,101610,12/06/2014,10202885
INSERTED DETAIL,Housing Revenue Account ,Lesley Souter House AP,AGP16,Water Services,0143,1767.41,Severn Trent Water Ltd,101610,19/06/2014,10203178
INSERTED DETAIL,Resources & Corporate Governance,Corporate Property Central Utilities,CPA02,Water Services,0143,2609.73,Severn Trent Water Ltd,101610,12/06/2014,10203183
INSERTED DETAIL,Capital Programme ,Disabled Facilities Grant,REN01,Capital Grants,5014,2027.00,Stannah Stairlifts Ltd,101623,26/06/2014,10203889
INSERTED DETAIL,Housing Revenue Account ,Unplanned Maintenance and Repair,UMR00,R&M External Contractors,0100,1087.00,Steve Diston Contract Flooring,101668,12/06/2014,10203270
INSERTED DETAIL,Housing Revenue Account ,Unplanned Maintenance and Repair,UMR00,R&M External Contractors,0100,1087.00,Steve Diston Contract Flooring,101668,12/06/2014,10203272
INSERTED DETAIL,Housing Revenue Account ,Unplanned Maintenance and Repair,UMR00,R&M External Contractors,0100,1087.00,Steve Diston Contract Flooring,101668,12/06/2014,10203273
INSERTED DETAIL,Resources & Corporate Governance,Housing Maintenance,WHM00,Materials,0303,2646.13,Travis Perkins Trading Co Ltd,101732,05/06/2014,10201906
INSERTED DETAIL,Resources & Corporate Governance,Housing Maintenance,WHM00,Materials,0303,1287.58,Travis Perkins Trading Co Ltd,101732,05/06/2014,10202123
INSERTED DETAIL,Resources & Corporate Governance,Housing Maintenance,WHM00,Materials,0303,3590.47,Travis Perkins Trading Co Ltd,101732,05/06/2014,10202271
INSERTED DETAIL,Resources & Corporate Governance,Housing Maintenance,WHM00,Materials,0303,2675.82,Travis Perkins Trading Co Ltd,101732,05/06/2014,10202526
INSERTED DETAIL,Resources & Corporate Governance,Housing Maintenance,WHM00,Materials,0303,2169.67,Travis Perkins Trading Co Ltd,101732,05/06/2014,10202527
INSERTED DETAIL,Resources & Corporate Governance,Housing Maintenance,WHM00,Materials,0303,4278.88,Travis Perkins Trading Co Ltd,101732,26/06/2014,10203000
INSERTED DETAIL,Resources & Corporate Governance,Housing Maintenance,WHM00,Vehicle Running Costs,0201,27.00,HI-Q Motorway,101736,05/06/2014,10202775
INSERTED DETAIL,Resources & Corporate Governance ,Domestic Waste Collection,WWC00,Vehicle Running Costs,0201,1164.82,HI-Q Motorway,101736,05/06/2014,10202775
INSERTED DETAIL,Resources & Corporate Governance ,Street Cleansing,WSC00,Vehicle Running Costs,0201,232.93,HI-Q Motorway,101736,19/06/2014,10203557
INSERTED DETAIL,Resources & Corporate Governance ,Domestic Waste Collection,WWC00,Vehicle Running Costs,0201,518.91,HI-Q Motorway,101736,19/06/2014,10203557
INSERTED DETAIL,Resources & Corporate Governance ,Grounds Maintenance,WGM00,Vehicle Repair and Maintenance,0200,13.63,Tudor Environmental,101743,12/06/2014,10202859
INSERTED DETAIL,Resources & Corporate Governance ,Grounds Maintenance,WGM00,Materials,0303,12.41,Tudor Environmental,101743,12/06/2014,10202859
INSERTED DETAIL,Resources & Corporate Governance ,Grounds Maintenance,WGM00,Tools,0304,525.00,Tudor Environmental,101743,12/06/2014,10202859
INSERTED DETAIL,Economy Development & Culture,Planning General/Income,PLN00,Training fees,0011,1600.00,Trevor Roberts Associates,101744,19/06/2014,10203537
INSERTED DETAIL,Resources & Corporate Governance ,Domestic Waste Collection,WWC00,Vehicle Repair and Maintenance,0200,465.52,Terberg Matec Uk,101761,12/06/2014,10202748
INSERTED DETAIL,Resources & Corporate Governance ,Domestic Waste Collection,WWC00,Vehicle Repair and Maintenance,0200,1501.90,Terberg Matec Uk,101761,05/06/2014,10202750
INSERTED DETAIL,Resources & Corporate Governance ,Domestic Waste Collection,WWC00,Vehicle Repair and Maintenance,0200,1694.46,Terberg Matec Uk,101761,12/06/2014,10202946
INSERTED DETAIL,Capital Programme ,Open Spaces Refurbishment,LEI08,Capital Contract Payments,5000,20205.00,Wicksteed Leisure Limited,101845,12/06/2014,10203207
INSERTED DETAIL,Sustainable Environment ,Grass Cutting,PKS13,External Contractor & Operator,0742,1807.00,Wolvey Parish Council,101853,05/06/2014,10202893
INSERTED DETAIL,Resources & Corporate Governance ,General Administration,WAD00,Training fees,0011,715.00,Warwickshire College,101882,12/06/2014,10203323
INSERTED DETAIL,Economy Development & Culture,Car Parks General,CPK01,Signage,0151,11390.14,Warwickshire County Council,101893,12/06/2014,10201267
INSERTED DETAIL,Economy Development & Culture,Planning General/Income,PLN00,Consultancy Costs,0740,2767.00,Warwickshire County Council,101893,26/06/2014,10203904
INSERTED DETAIL,Capital Programme ,Bathroom Modifications,HIS01,Capital Contract Payments,5000,9599.08,Adroit Services Ltd,101939,05/06/2014,10202903
INSERTED DETAIL,Housing Revenue Account ,Unplanned Maintenance and Repair,UMR00,R&M External Contractors,0100,401.58,Adroit Services Ltd,101939,05/06/2014,10202904
INSERTED DETAIL,Capital Programme ,Disabled Adaptations,HCR01,Capital Contract Payments,5000,900.00,Adroit Services Ltd,101939,05/06/2014,10202904
INSERTED DETAIL,Housing Revenue Account ,Unplanned Maintenance and Repair,UMR00,R&M External Contractors,0100,558.77,Adroit Services Ltd,101939,05/06/2014,10203025
INSERTED DETAIL,Housing Revenue Account ,Unplanned Maintenance and Repair,UMR00,R&M External Contractors,0100,1275.89,Adroit Services Ltd,101939,12/06/2014,10203227
INSERTED DETAIL,Capital Programme ,Bathroom Modifications,HIS01,Capital Contract Payments,5000,4962.04,Adroit Services Ltd,101939,12/06/2014,10203228
INSERTED DETAIL,Housing Revenue Account ,Unplanned Maintenance and Repair,UMR00,R&M External Contractors,0100,538.61,Adroit Services Ltd,101939,12/06/2014,10203229
INSERTED DETAIL,Capital Programme ,Disabled Adaptations,HCR01,Capital Contract Payments,5000,1449.85,Adroit Services Ltd,101939,12/06/2014,10203229
INSERTED DETAIL,Capital Programme ,Bathroom Modifications,HIS01,Capital Contract Payments,5000,2399.77,Adroit Services Ltd,101939,12/06/2014,10203229
INSERTED DETAIL,Housing Revenue Account ,Unplanned Maintenance and Repair,UMR00,R&M External Contractors,0100,759.49,Adroit Services Ltd,101939,19/06/2014,10203417
INSERTED DETAIL,Capital Programme ,Electric to Gas Conversions,HIM04,Capital Contract Payments,5000,127.50,Adroit Services Ltd,101939,19/06/2014,10203417
INSERTED DETAIL,Capital Programme ,Bathroom Modifications,HIS01,Capital Contract Payments,5000,222.50,Adroit Services Ltd,101939,19/06/2014,10203417
INSERTED DETAIL,Housing Revenue Account ,Unplanned Maintenance and Repair,UMR00,R&M External Contractors,0100,61.57,Adroit Services Ltd,101939,19/06/2014,10203420
INSERTED DETAIL,Capital Programme ,Electric to Gas Conversions,HIM04,Capital Contract Payments,5000,2886.38,Adroit Services Ltd,101939,19/06/2014,10203420
INSERTED DETAIL,Capital Programme ,Bathroom Modifications,HIS01,Capital Contract Payments,5000,7199.31,Adroit Services Ltd,101939,19/06/2014,10203420
INSERTED DETAIL,Housing Revenue Account ,Unplanned Maintenance and Repair,UMR00,R&M External Contractors,0100,334.75,Adroit Services Ltd,101939,19/06/2014,10203526
INSERTED DETAIL,Capital Programme ,Heating Upgrades,HIM01,Capital Contract Payments,5000,2480.00,Adroit Services Ltd,101939,19/06/2014,10203526
INSERTED DETAIL,Economy Development & Culture,The Benn Hall,BHL00,Publicity & Marketing,0377,419.50,Johnston Publishing Ltd,107468,12/06/2014,10202987
INSERTED DETAIL,Resources & Corporate Governance ,Grounds Maintenance,WGM00,Contract Hire,0220,637.05,TJS Self Drive Rugby,107992,12/06/2014,10203014
INSERTED DETAIL,Housing Revenue Account ,Gas Heating Systems,UMR01,R&M External Contractors,0100,651.00,Ser-Tec Systems Ltd,108074,05/06/2014,10202710
INSERTED DETAIL,Resources & Corporate Governance ,Street Cleansing,WSC00,Vehicle Repair and Maintenance,0200,1409.00,Scarab Sweepers Ltd,108252,05/06/2014,10202950
INSERTED DETAIL,Resources & Corporate Governance ,Central Telephone Service,TEL00,Telephone Expenses,0371,1031.51,British Telecommunications PLC,108425,26/06/2014,10204008
INSERTED DETAIL,Sustainable Environment,Crematorium,CRM00,Medical Referees Fees,0413,925.00,Dunchurch Surgery,108687,19/06/2014,10203488
INSERTED DETAIL,Economy Development & Culture,Town Centre Public Conveniences,PCS00,External Contractor & Operator,0742,638.00,1ST CLASS HYGIENE LTD,110029,12/06/2014,10203028
INSERTED DETAIL,Economy Development & Culture,Town Centre Public Conveniences,PCS00,External Contractor & Operator,0742,1050.00,1ST CLASS HYGIENE LTD,110029,12/06/2014,10203387
INSERTED DETAIL,Sustainable Environment ,Parks,PKS00,Materials,0303,461.68,Boughton Loam Limited,110360,19/06/2014,10203393
INSERTED DETAIL,Resources & Corporate Governance ,Garage Internal,WVR01,Materials,0303,27807.00,Watson Petroleum,110361,12/06/2014,10203039
INSERTED DETAIL,Resources & Corporate Governance,Corporate Property R&M,CPA01,R&M External Contractors,0100,449.10,Croxford Electrical Ltd,110451,05/06/2014,10202696
INSERTED DETAIL,Resources & Corporate Governance ,Warwickshire On Line Partnership,JCC10,Payments to Other Local Authorities,0710,1013.00,Warwick District Council,111228,19/06/2014,10203517
INSERTED DETAIL,Capital Programme ,Open Spaces Refurbishment,LEI08,Capital Contract Payments,5000,32578.21,Blakedown Landscapes,111940,12/06/2014,10203010
INSERTED DETAIL,Resources & Corporate Governance ,Maintenance of Customer Services Systems,CIS21,Software Maintenance,0374,4393.00,Civica UK Ltd,112724,19/06/2014,10203446
INSERTED DETAIL,Resources & Corporate Governance ,Maintenance of Customer Services Systems,CIS21,Software Maintenance,0374,4093.57,Civica UK Ltd,112724,26/06/2014,10203931
INSERTED DETAIL,Resources & Corporate Governance ,Maintenance of Customer Services Systems,CIS21,Software Maintenance,0374,8146.24,Civica UK Ltd,112724,26/06/2014,10203934
INSERTED DETAIL,Resources & Corporate Governance ,Maintenance of Customer Services Systems,CIS21,Software Maintenance,0374,10373.77,Civica UK Ltd,112724,26/06/2014,10203935
INSERTED DETAIL,Resources & Corporate Governance ,Maintenance of Customer Services Systems,CIS21,Software Maintenance,0374,423.53,Civica UK Ltd,112724,26/06/2014,10204010
INSERTED DETAIL,Resources & Corporate Governance ,Grounds Maintenance,WGM00,Tools,0304,607.50,Geo Browns Implements Ltd,112870,12/06/2014,10203407
INSERTED DETAIL,Housing Revenue Account ,Unplanned Maintenance and Repair,UMR00,R&M External Contractors,0100,10324.50,Temple Lifts Ltd,114738,12/06/2014,10202899
INSERTED DETAIL,Resources & Corporate Governance,Corporate Property R&M,CPA01,R&M External Contractors,0100,484.61,Temple Lifts Ltd,114738,05/06/2014,10203084
INSERTED DETAIL,Housing Revenue Account ,Unplanned Maintenance and Repair,UMR00,R&M External Contractors,0100,114.00,Temple Lifts Ltd,114738,05/06/2014,10203109
INSERTED DETAIL,Capital Programme ,Lifts Refurbishment,HCE27,Capital Contract Payments,5000,872.00,Temple Lifts Ltd,114738,05/06/2014,10203109
INSERTED DETAIL,Capital Programme ,Lifts Refurbishment,HCE27,Capital Contract Payments,5000,1744.00,Temple Lifts Ltd,114738,05/06/2014,10203110
INSERTED DETAIL,Capital Programme ,Lifts Refurbishment,HCE27,Capital Contract Payments,5000,5232.00,Temple Lifts Ltd,114738,19/06/2014,10203411
INSERTED DETAIL,Housing Revenue Account ,Unplanned Maintenance and Repair,UMR00,R&M External Contractors,0100,1239.65,Temple Lifts Ltd,114738,19/06/2014,10203493
INSERTED DETAIL,Housing Revenue Account ,Unplanned Maintenance and Repair,UMR00,R&M External Contractors,0100,1239.65,Temple Lifts Ltd,114738,19/06/2014,10203520
INSERTED DETAIL,Sustainable Environment ,Parks,PKS00,R&M External Contractors,0100,697.00,Streetmaster (South Wales) Ltd,114898,05/06/2014,10202844
INSERTED DETAIL,Sustainable Inclusive Communities,Housing Options Team,HOT00,Rents,0140,490.00,Diamond House Hotel,115070,12/06/2014,10202684
INSERTED DETAIL,Sustainable Inclusive Communities,Housing Options Team,HOT00,Rents,0140,490.00,Diamond House Hotel,115070,12/06/2014,10203223
INSERTED DETAIL,Sustainable Inclusive Communities,Housing Options Team,HOT00,Rents,0140,455.00,Diamond House Hotel,115070,12/06/2014,10203224
INSERTED DETAIL,Resources & Corporate Governance ,Grounds Maintenance,WGM00,Vehicle Repair and Maintenance,0200,245.00,Townsend Vehicle Hire,115165,19/06/2014,10202270
INSERTED DETAIL,Resources & Corporate Governance ,Grounds Maintenance,WGM00,Contract Hire,0220,700.00,Townsend Vehicle Hire,115165,19/06/2014,10202270
INSERTED DETAIL,Sustainable Environment ,Parks,PKS00,New Equipment,0300,529.80,Photocast Products,115258,19/06/2014,10203324
INSERTED DETAIL,Resources & Corporate Governance ,Highways,WHG00,Materials,0303,650.00,Wilkinson Environmental Ltd,115285,05/06/2014,10202964
INSERTED DETAIL,Resources & Corporate Governance,Housing Maintenance,WHM00,Contract Hire,0220,452.24,Brandon Tool Hire,118489,12/06/2014,10200668
INSERTED DETAIL,Resources & Corporate Governance,Housing Maintenance,WHM00,Contract Hire,0220,473.78,Brandon Tool Hire,118489,12/06/2014,10201961
INSERTED DETAIL,Resources & Corporate Governance,Housing Maintenance,WHM00,Contract Hire,0220,473.78,Brandon Tool Hire,118489,12/06/2014,10203214
INSERTED DETAIL,Resources & Corporate Governance,Corporate Property Central Utilities,CPA02,Electricity,0130,620.95,Southern Electric,118976,26/06/2014,10203268
INSERTED DETAIL,Resources & Corporate Governance,Corporate Property Central Utilities,CPA02,Electricity,0130,8396.75,Southern Electric,118976,26/06/2014,10203423
INSERTED DETAIL,Sustainable Environment,Crematorium,CRM00,Electricity,0130,854.62,Southern Electric,118976,26/06/2014,10203423
INSERTED DETAIL,Sustainable Inclusive Communities,CL Grants,CGS00,Grants To Voluntary Organisations,0720,2000.00,Overslade Community Association,119698,12/06/2014,10203192
INSERTED DETAIL,Resources & Corporate Governance ,Toilet Cleaning,WBC01,Agency Staff,0003,302.40,G Staff,120173,05/06/2014,10202784
INSERTED DETAIL,Resources & Corporate Governance ,Street Cleansing,WSC00,Agency Staff,0003,519.12,G Staff,120173,05/06/2014,10202784
INSERTED DETAIL,Resources & Corporate Governance ,Domestic Waste Collection,WWC00,Agency Staff,0003,660.63,G Staff,120173,05/06/2014,10202784
INSERTED DETAIL,Resources & Corporate Governance ,Toilet Cleaning,WBC01,Agency Staff,0003,262.08,G Staff,120173,05/06/2014,10202857
INSERTED DETAIL,Resources & Corporate Governance ,Street Cleansing,WSC00,Agency Staff,0003,491.56,G Staff,120173,05/06/2014,10202857
INSERTED DETAIL,Resources & Corporate Governance ,Domestic Waste Collection,WWC00,Agency Staff,0003,892.38,G Staff,120173,05/06/2014,10202857
INSERTED DETAIL,Resources & Corporate Governance ,Toilet Cleaning,WBC01,Agency Staff,0003,538.00,G Staff,120173,19/06/2014,10203209
INSERTED DETAIL,Resources & Corporate Governance ,Street Cleansing,WSC00,Agency Staff,0003,474.06,G Staff,120173,19/06/2014,10203209
INSERTED DETAIL,Resources & Corporate Governance ,Domestic Waste Collection,WWC00,Agency Staff,0003,795.96,G Staff,120173,19/06/2014,10203209
INSERTED DETAIL,Resources & Corporate Governance ,Toilet Cleaning,WBC01,Agency Staff,0003,403.20,G Staff,120173,26/06/2014,10203865
INSERTED DETAIL,Resources & Corporate Governance ,Street Cleansing,WSC00,Agency Staff,0003,524.16,G Staff,120173,26/06/2014,10203865
INSERTED DETAIL,Resources & Corporate Governance ,Domestic Waste Collection,WWC00,Agency Staff,0003,401.53,G Staff,120173,26/06/2014,10203865
INSERTED DETAIL,Resources & Corporate Governance,Housing Maintenance,WHM00,External Contractor & Operator,0742,460.00,Valetree Engineering Ltd,120434,26/06/2014,10202561
INSERTED DETAIL,Sustainable Environment,Regulatory Services,REG00,Other Miscellaneous Expenses,0444,1480.00,The Rugby Funeral Home Ltd,121388,05/06/2014,10202882
INSERTED DETAIL,Sustainable Inclusive Communities,Housing Options Team,HOT00,Agency Staff,0003,666.00,Venn Group Recruitment Solutions,121594,05/06/2014,10202890
INSERTED DETAIL,Sustainable Inclusive Communities,Housing Options Team,HOT00,Agency Staff,0003,1092.00,Venn Group Recruitment Solutions,121594,05/06/2014,10202891
INSERTED DETAIL,Sustainable Inclusive Communities,Housing Options Team,HOT00,Agency Staff,0003,952.00,Venn Group Recruitment Solutions,121594,12/06/2014,10203158
INSERTED DETAIL,Sustainable Inclusive Communities,Housing Options Team,HOT00,Agency Staff,0003,513.00,Venn Group Recruitment Solutions,121594,12/06/2014,10203159
INSERTED DETAIL,Housing Revenue Account ,Voids & Allocations Team,MAN24,Agency Staff,0003,1106.00,Venn Group Recruitment Solutions,121594,19/06/2014,10203432
INSERTED DETAIL,Housing Revenue Account ,Voids & Allocations Team,MAN24,Agency Staff,0003,576.00,Venn Group Recruitment Solutions,121594,19/06/2014,10203433
INSERTED DETAIL,Housing Revenue Account ,Voids & Allocations Team,MAN24,Agency Staff,0003,639.00,Venn Group Recruitment Solutions,121594,26/06/2014,10203819
INSERTED DETAIL,Housing Revenue Account ,Voids & Allocations Team,MAN24,Agency Staff,0003,1106.00,Venn Group Recruitment Solutions,121594,26/06/2014,10203820
INSERTED DETAIL,Capital Programme ,Housing Management System,HCE08,IT Capital Expenditure,5025,5750.00,Northgate Information Solutions UK Ltd,121606,19/06/2014,10203013
INSERTED DETAIL,Capital Programme ,Housing Management System,HCE08,Capital Contract Payments,5000,750.00,Northgate Information Solutions UK Ltd,121606,26/06/2014,10203877
INSERTED DETAIL,Resources & Corporate Governance ,Customer and Information Strategy,CIS10,Software/Equipment Licences,0379,1000.00,Northgate Information Solutions UK Ltd,121606,26/06/2014,10203878
INSERTED DETAIL,Resources & Corporate Governance ,Maintenance of Customer Services Systems,CIS21,Software Maintenance,0374,1091.13,Northgate Information Solutions UK Ltd,121606,26/06/2014,10203942
INSERTED DETAIL,Sustainable Environment ,Parks,PKS00,Other Insurance Excesses,0441,614.75,Travelers Insurance Co,121642,12/06/2014,10203284
INSERTED DETAIL,Resources & Corporate Governance ,Human Resources Centralised Services,RES31,Training fees,0011,1120.00,HQN Limited,122890,12/06/2014,10203299
INSERTED DETAIL,Housing Revenue Account ,Property Maintenance,MAN23,Software Maintenance,0374,720.00,HQN Limited,122890,26/06/2014,10203823
INSERTED DETAIL,Resources & Corporate Governance ,Public Services Network,PSN00,IT Capital Expenditure,5025,999.00,Cable & Wireless/T/A Vodafone,123224,12/06/2014,10201478
INSERTED DETAIL,Resources & Corporate Governance ,Central Telephone Service,TEL00,Telephone Expenses,0371,1157.85,Cable & Wireless/T/A Vodafone,123224,12/06/2014,10203221
INSERTED DETAIL,Sustainable Environment ,Parks,PKS00,External Contractor & Operator,0742,2760.00,Rigby Taylor Ltd,123342,12/06/2014,10202581
INSERTED DETAIL,Resources & Corporate Governance ,Domestic Waste Collection,WWC00,Materials,0303,17964.60,SSI Schaefer Ltd,123543,19/06/2014,10203462
INSERTED DETAIL,Sustainable Environment,Regulatory Services,REG00,Software/Equipment Licences,0379,1093.42,Airwave Solutions Limited,126436,05/06/2014,10202875
INSERTED DETAIL,Capital Programme ,Purchase of Vehicles,VHC00,Miscellaneous Capital Expenditure,5020,15500.00,Guest Trucks,126437,05/06/2014,10202898
INSERTED DETAIL,Economy Development & Culture,Car Parks General,CPK01,Telephone Expenses,0371,-91.00,EE Ltd t/a Orange PCS Limited,127916,26/06/2014,10191644
INSERTED DETAIL,Economy Development & Culture,Decrim. of Car Parking on street parking,DPE02,Telephone Expenses,0371,-364.00,EE Ltd t/a Orange PCS Limited,127916,26/06/2014,10191644
INSERTED DETAIL,Sustainable Environment,Regulatory Services,REG00,Telephone Expenses,0371,-490.00,EE Ltd t/a Orange PCS Limited,127916,26/06/2014,10191659
INSERTED DETAIL,Economy Development & Culture,The Benn Hall,BHL00,Telephone Expenses,0371,60.00,EE Ltd t/a Orange PCS Limited,127916,26/06/2014,10195590
INSERTED DETAIL,Economy Development & Culture,Sports and Recreation,LSD03,Telephone Expenses,0371,60.00,EE Ltd t/a Orange PCS Limited,127916,26/06/2014,10195590
INSERTED DETAIL,Economy Development & Culture,Positive Futures,LSD04,Telephone Expenses,0371,325.00,EE Ltd t/a Orange PCS Limited,127916,26/06/2014,10195590
INSERTED DETAIL,Economy Development & Culture,Sports Development,LSD06,Telephone Expenses,0371,60.00,EE Ltd t/a Orange PCS Limited,127916,26/06/2014,10195590
INSERTED DETAIL,Economy Development & Culture,Play Projects (revenue),LSD09,Telephone Expenses,0371,120.00,EE Ltd t/a Orange PCS Limited,127916,26/06/2014,10195590
INSERTED DETAIL,Economy Development & Culture,Family Lifestyle Project,LSD11,Telephone Expenses,0371,35.00,EE Ltd t/a Orange PCS Limited,127916,26/06/2014,10195590
INSERTED DETAIL,Resources & Corporate Governance ,WSU Depot,WDP00,Telephone Expenses,0371,712.00,EE Ltd t/a Orange PCS Limited,127916,26/06/2014,10199560
INSERTED DETAIL,Housing Revenue Account ,Supervision and Management General,MAN00,Telephone Expenses,0371,343.00,EE Ltd t/a Orange PCS Limited,127916,26/06/2014,10203399
INSERTED DETAIL,Housing Revenue Account ,Multi-Storey Flats,MSF00,Telephone Expenses,0371,49.00,EE Ltd t/a Orange PCS Limited,127916,26/06/2014,10203399
INSERTED DETAIL,Sustainable Inclusive Communities,Woodside Park,TVR00,Telephone Expenses,0371,49.00,EE Ltd t/a Orange PCS Limited,127916,26/06/2014,10203399
INSERTED DETAIL,Housing Revenue Account ,Supervision and Management General,MAN00,Telephone Expenses,0371,-343.00,EE Ltd t/a Orange PCS Limited,127916,26/06/2014,10203793
INSERTED DETAIL,Housing Revenue Account ,Multi-Storey Flats,MSF00,Telephone Expenses,0371,-49.00,EE Ltd t/a Orange PCS Limited,127916,26/06/2014,10203793
INSERTED DETAIL,Sustainable Inclusive Communities,Woodside Park,TVR00,Telephone Expenses,0371,-49.00,EE Ltd t/a Orange PCS Limited,127916,26/06/2014,10203793
INSERTED DETAIL,Resources & Corporate Governance,Housing Maintenance,WHM00,External Contractor & Operator,0742,592.50,M P Hudson & Son,129334,05/06/2014,10202647
INSERTED DETAIL,Resources & Corporate Governance,Housing Maintenance,WHM00,External Contractor & Operator,0742,550.00,M P Hudson & Son,129334,12/06/2014,10203254
INSERTED DETAIL,Resources & Corporate Governance,Housing Maintenance,WHM00,External Contractor & Operator,0742,670.00,M P Hudson & Son,129334,19/06/2014,10203680
INSERTED DETAIL,Resources & Corporate Governance,Housing Maintenance,WHM00,External Contractor & Operator,0742,650.00,M P Hudson & Son,129334,26/06/2014,10203949
INSERTED DETAIL,Resources & Corporate Governance ,European Elections,ELC04,Postal Voting Stationery,0360,5702.14,Print.UK.Com,129503,19/06/2014,10203629
INSERTED DETAIL,,Democratic Services,DEM10,Conference & Seminar Fees,0401,478.00,Centre for Public Scrutiny Limited,130056,05/06/2014,10202836
INSERTED DETAIL,Capital Programme ,Woodland Creation Project,WCP00,Capital Contract Payments,5000,950.00,I D Welding & Fabrications,131407,19/06/2014,10203316
INSERTED DETAIL,Economy Development & Culture,Car Parks General,CPK01,Cash Collection,0744,898.72,Jade Security Services Ltd,131711,12/06/2014,10202059
INSERTED DETAIL,Economy Development & Culture,Decrim. of Car Parking on street parking,DPE02,Cash Collection,0744,728.84,Jade Security Services Ltd,131711,12/06/2014,10203204
INSERTED DETAIL,Economy Development & Culture,Car Parks General,CPK01,Cash Collection,0744,948.04,Jade Security Services Ltd,131711,12/06/2014,10203205
INSERTED DETAIL,Capital Programme ,Disabled Facilities Grant,REN01,Capital Grants,5014,3598.00,D K Builders,131946,12/06/2014,10203091
INSERTED DETAIL,Housing Revenue Account ,Unplanned Maintenance and Repair,UMR00,R&M External Contractors,0100,2061.35,Wilson Electrics,132051,19/06/2014,10203521
INSERTED DETAIL,Economy Development & Culture,Town Centre CCTV and Management,TVM00,Other Agencies,0734,24887.50,Rugby First Ltd - BID,133176,19/06/2014,10203237
INSERTED DETAIL,Resources & Corporate Governance ,Highways,WHG00,Materials,0303,842.59,Breedon Aggregates England Limited,133309,05/06/2014,10202393
INSERTED DETAIL,Resources & Corporate Governance ,Highways,WHG00,Materials,0303,1294.89,Breedon Aggregates England Limited,133309,12/06/2014,10202947
INSERTED DETAIL,Sustainable Inclusive Communities,Housing Options Team,HOT00,Agency Staff,0003,902.30,Community Resourcing,133778,05/06/2014,10202742
INSERTED DETAIL,Sustainable Inclusive Communities,Housing Options Team,HOT00,Agency Staff,0003,876.52,Community Resourcing,133778,12/06/2014,10203161
INSERTED DETAIL,Sustainable Inclusive Communities,Housing Options Team,HOT00,Agency Staff,0003,1114.99,Community Resourcing,133778,19/06/2014,10203429
INSERTED DETAIL,Sustainable Inclusive Communities,Housing Options Team,HOT00,Agency Staff,0003,1121.43,Community Resourcing,133778,26/06/2014,10203818
INSERTED DETAIL,Resources & Corporate Governance,Housing Maintenance,WHM00,External Contractor & Operator,0742,2372.00,Homecare Decorating,133884,12/06/2014,10202657
INSERTED DETAIL,Resources & Corporate Governance,Housing Maintenance,WHM00,External Contractor & Operator,0742,2462.50,Homecare Decorating,133884,12/06/2014,10202658
INSERTED DETAIL,Resources & Corporate Governance,Housing Maintenance,WHM00,External Contractor & Operator,0742,455.00,Homecare Decorating,133884,05/06/2014,10202667
INSERTED DETAIL,Resources & Corporate Governance,Corporate Property R&M,CPA01,R&M External Contractors,0100,490.00,Sunfish Services Ltd,133886,19/06/2014,10203494
INSERTED DETAIL,Housing Revenue Account ,Unplanned Maintenance and Repair,UMR00,R&M External Contractors,0100,557.34,Sunfish Services Ltd,133886,19/06/2014,10203523
INSERTED DETAIL,Capital Programme ,Fire Risk Prevention Works,HCE18,Capital Contract Payments,5000,935.92,Sunfish Services Ltd,133886,19/06/2014,10203523
INSERTED DETAIL,Sustainable Inclusive Communities,CL Grants,CGS00,Grants To Voluntary Organisations,0720,2000.00,Brownsover Community Association,135180,05/06/2014,10203027
INSERTED DETAIL,Housing Revenue Account ,Alfred Green Close AP,AGP01,Electricity,0130,607.10,Southern Electric,135653,12/06/2014,10203378
INSERTED DETAIL,Housing Revenue Account ,Duffy Place AP,AGP04,Electricity,0130,718.04,Southern Electric,135653,12/06/2014,10203378
INSERTED DETAIL,Housing Revenue Account ,John Thwaites Close AP,AGP08,Electricity,0130,281.43,Southern Electric,135653,12/06/2014,10203378
INSERTED DETAIL,Housing Revenue Account ,Stacey Court AP,AGP12,Electricity,0130,212.34,Southern Electric,135653,12/06/2014,10203378
INSERTED DETAIL,Housing Revenue Account ,Tanser Court AP,AGP17,Electricity,0130,1225.25,Southern Electric,135653,12/06/2014,10203378
INSERTED DETAIL,Housing Revenue Account ,Eliot Court AP,AGP25,Electricity,0130,179.40,Southern Electric,135653,12/06/2014,10203378
INSERTED DETAIL,Housing Revenue Account ,Assheton Close AP,AGP36,Electricity,0130,169.11,Southern Electric,135653,12/06/2014,10203378
INSERTED DETAIL,Housing Revenue Account ,Bennett Court/Warwick Road AP,AGP38,Electricity,0130,31.64,Southern Electric,135653,12/06/2014,10203378
INSERTED DETAIL,Housing Revenue Account ,Deepmore Road/Lytham Road AP,AGP42,Electricity,0130,473.49,Southern Electric,135653,12/06/2014,10203378
INSERTED DETAIL,Housing Revenue Account ,Edmondson Close Dunchurch AP,AGP44,Electricity,0130,476.31,Southern Electric,135653,12/06/2014,10203378
INSERTED DETAIL,Housing Revenue Account ,Harold Cox Place AP,AGP51,Electricity,0130,274.93,Southern Electric,135653,12/06/2014,10203378
INSERTED DETAIL,Housing Revenue Account ,Miscellaneous AP,AGP99,Electricity,0130,21.30,Southern Electric,135653,12/06/2014,10203378
INSERTED DETAIL,Housing Revenue Account ,Supervision and Management General,MAN00,Electricity,0130,22.33,Southern Electric,135653,12/06/2014,10203378
INSERTED DETAIL,Sustainable Inclusive Communities,Woodside Park,TVR00,Electricity,0130,4131.84,Southern Electric,135653,12/06/2014,10203378
INSERTED DETAIL,Housing Revenue Account ,Mercer Court AP,AGP09,Electricity,0130,101.24,Southern Electric,135653,19/06/2014,10203427
INSERTED DETAIL,Housing Revenue Account ,Robotham Close AP,AGP11,Electricity,0130,257.20,Southern Electric,135653,19/06/2014,10203427
INSERTED DETAIL,Housing Revenue Account ,Stretton Court AP,AGP13,Electricity,0130,302.98,Southern Electric,135653,19/06/2014,10203427
INSERTED DETAIL,Housing Revenue Account ,Hirst Close AP,AGP33,Electricity,0130,319.59,Southern Electric,135653,19/06/2014,10203427
INSERTED DETAIL,Housing Revenue Account ,Brookside Pailton AP,AGP40,Electricity,0130,206.60,Southern Electric,135653,19/06/2014,10203427
INSERTED DETAIL,Housing Revenue Account ,Great Balance Brinklow AP,AGP48,Electricity,0130,84.42,Southern Electric,135653,19/06/2014,10203427
INSERTED DETAIL,Housing Revenue Account ,Meadow Way/Primrose Court AP,AGP58,Electricity,0130,48.15,Southern Electric,135653,19/06/2014,10203427
INSERTED DETAIL,Housing Revenue Account ,Norman Road AP,AGP60,Electricity,0130,45.30,Southern Electric,135653,19/06/2014,10203427
INSERTED DETAIL,Housing Revenue Account ,Patterdale AP,AGP61,Electricity,0130,116.76,Southern Electric,135653,19/06/2014,10203427
INSERTED DETAIL,Housing Revenue Account ,Parkfield Road/Lea Crescent AP,AGP71,Electricity,0130,261.44,Southern Electric,135653,19/06/2014,10203427
INSERTED DETAIL,Housing Revenue Account ,Supervision and Management General,MAN00,Electricity,0130,132.90,Southern Electric,135653,19/06/2014,10203427
INSERTED DETAIL,Resources & Corporate Governance ,Domestic Waste Collection,WWC00,Vehicle Repair and Maintenance,0200,509.84,Heil Farid European Company Ltd,137390,05/06/2014,10202589
INSERTED DETAIL,Resources & Corporate Governance ,Domestic Waste Collection,WWC00,Vehicle Repair and Maintenance,0200,621.14,Heil Farid European Company Ltd,137390,19/06/2014,10203450
INSERTED DETAIL,Resources & Corporate Governance ,Street Cleansing,WSC00,Materials,0303,673.60,Danline International Ltd,137588,19/06/2014,10203581
INSERTED DETAIL,Resources & Corporate Governance ,Borough Elections,ELC00,External Printing,0352,3859.00,Smith & Ouzman Ltd,138682,12/06/2014,10203289
INSERTED DETAIL,Resources & Corporate Governance ,Borough Elections,ELC00,External Printing,0352,3992.00,Smith & Ouzman Ltd,138682,19/06/2014,10203406
INSERTED DETAIL,Economy Development & Culture,AGM Conservation/Documentation,AGM01,Other Miscellaneous Expenses,0444,438.00,Collections Trust,139878,05/06/2014,10202795
INSERTED DETAIL,Housing Revenue Account ,Asbestos Surveys,UMR05,R&M External Contractors,0100,130.00,Rider Levett Bucknall UK Ltd,139918,12/06/2014,10203279
INSERTED DETAIL,Capital Programme ,Bathroom Modifications,HIS01,Capital Contract Payments,5000,910.00,Rider Levett Bucknall UK Ltd,139918,12/06/2014,10203279
INSERTED DETAIL,Economy Development & Culture,Planning General/Income,PLN00,Consultancy Costs,0740,500.00,P Rhodes,140076,19/06/2014,10203659
INSERTED DETAIL,Economy Development & Culture,Planning General/Income,PLN00,Consultancy Costs,0740,580.00,P Rhodes,140076,26/06/2014,10203886
INSERTED DETAIL,Resources & Corporate Governance,Housing Maintenance,WHM00,External Contractor & Operator,0742,1780.00,D J Whitlock Plant Hire,140156,12/06/2014,10202354
INSERTED DETAIL,Resources & Corporate Governance ,Domestic Waste Collection,WWC00,Vehicle Repair and Maintenance,0200,648.85,Midlands Truck & Van Ltd,140322,05/06/2014,10202620
INSERTED DETAIL,Resources & Corporate Governance ,Trade Waste Collection,WWC01,Vehicle Repair and Maintenance,0200,469.00,Midlands Truck & Van Ltd,140322,12/06/2014,10202863
INSERTED DETAIL,Resources & Corporate Governance ,Domestic Waste Collection,WWC00,Vehicle Repair and Maintenance,0200,5204.10,Midlands Truck & Van Ltd,140322,12/06/2014,10203040
INSERTED DETAIL,Resources & Corporate Governance ,Maintenance of Customer Services Systems,CIS21,Software Maintenance,0374,4659.01,Midland Software Ltd,140463,05/06/2014,10203016
INSERTED DETAIL,Sustainable Environment ,Parks,PKS00,External Contractor & Operator,0742,536.25,StoneWall Security Ltd,140775,19/06/2014,10203193
INSERTED DETAIL,Capital Programme ,Crematorium Project,BUR04,Telephone Expenses,0371,34.76,Zen Internet Ltd,141612,05/06/2014,10202332
INSERTED DETAIL,Resources & Corporate Governance ,Customer and Information Strategy,CIS10,Telephone Expenses,0371,915.38,Zen Internet Ltd,141612,05/06/2014,10202332
INSERTED DETAIL,Resources & Corporate Governance ,Council Tax and NNDR Collection,CTX01,Telephone Expenses,0371,21.27,Zen Internet Ltd,141612,05/06/2014,10202332
INSERTED DETAIL,Sustainable Inclusive Communities,Housing Benefit Administration,HBA00,Telephone Expenses,0371,30.75,Zen Internet Ltd,141612,05/06/2014,10202332
INSERTED DETAIL,Resources & Corporate Governance ,Customer and Information Strategy,CIS10,Telephone Expenses,0371,708.00,Zen Internet Ltd,141612,26/06/2014,10203893
INSERTED DETAIL,Resources & Corporate Governance ,WSU Depot,WDP00,Messing Facilities,0332,736.02,Autobar Vending Services Ltd,143028,05/06/2014,10198384
INSERTED DETAIL,Resources & Corporate Governance ,Trade Waste Collection,WWC01,Maintenance of Equipment,0301,2630.00,UK Container Maintenance Limited,143118,05/06/2014,10202969
INSERTED DETAIL,Sustainable Environment,Crematorium,CRM00,New Equipment,0300,1898.20,Norwich Books & Music,144234,19/06/2014,10203615
INSERTED DETAIL,Resources & Corporate Governance ,Maintenance of Customer Services Systems,CIS21,Software Maintenance,0374,4332.00,thetechnologyforge,145065,19/06/2014,10203691
INSERTED DETAIL,Capital Programme ,Open Spaces Refurbishment,LEI08,Capital Contract Payments,5000,36943.34,Matta Products (UK),145081,12/06/2014,10202507
INSERTED DETAIL,Resources & Corporate Governance ,General Administration,WAD00,Training fees,0011,906.39,Keith Cook Training Services,145120,26/06/2014,10203847
INSERTED DETAIL,Resources & Corporate Governance ,Grounds Maintenance,WGM00,Agency Staff,0003,264.32,Blue Arrow Limited,145492,05/06/2014,10202480
INSERTED DETAIL,Resources & Corporate Governance,Housing Maintenance,WHM00,Agency Staff,0003,1648.02,Blue Arrow Limited,145492,05/06/2014,10202480
INSERTED DETAIL,Resources & Corporate Governance ,Street Cleansing,WSC00,Agency Staff,0003,789.75,Blue Arrow Limited,145492,05/06/2014,10202480
INSERTED DETAIL,Resources & Corporate Governance ,Domestic Waste Collection,WWC00,Agency Staff,0003,3507.58,Blue Arrow Limited,145492,05/06/2014,10202480
INSERTED DETAIL,Resources & Corporate Governance ,Grounds Maintenance,WGM00,Agency Staff,0003,396.48,Blue Arrow Limited,145492,05/06/2014,10202777
INSERTED DETAIL,Resources & Corporate Governance,Housing Maintenance,WHM00,Agency Staff,0003,2180.26,Blue Arrow Limited,145492,05/06/2014,10202777
INSERTED DETAIL,Resources & Corporate Governance ,Street Cleansing,WSC00,Agency Staff,0003,703.62,Blue Arrow Limited,145492,05/06/2014,10202777
INSERTED DETAIL,Resources & Corporate Governance ,Domestic Waste Collection,WWC00,Agency Staff,0003,1975.04,Blue Arrow Limited,145492,05/06/2014,10202777
INSERTED DETAIL,Resources & Corporate Governance ,Grounds Maintenance,WGM00,Agency Staff,0003,721.89,Blue Arrow Limited,145492,05/06/2014,10202959
INSERTED DETAIL,Resources & Corporate Governance,Housing Maintenance,WHM00,Agency Staff,0003,1890.93,Blue Arrow Limited,145492,05/06/2014,10202959
INSERTED DETAIL,Resources & Corporate Governance ,Street Cleansing,WSC00,Agency Staff,0003,621.94,Blue Arrow Limited,145492,05/06/2014,10202959
INSERTED DETAIL,Resources & Corporate Governance ,Domestic Waste Collection,WWC00,Agency Staff,0003,2191.89,Blue Arrow Limited,145492,05/06/2014,10202959
INSERTED DETAIL,Resources & Corporate Governance ,Trade Waste Collection,WWC01,Agency Staff,0003,169.95,Blue Arrow Limited,145492,05/06/2014,10202959
INSERTED DETAIL,Resources & Corporate Governance ,Grounds Maintenance,WGM00,Agency Staff,0003,528.64,Blue Arrow Limited,145492,19/06/2014,10203377
INSERTED DETAIL,Resources & Corporate Governance,Housing Maintenance,WHM00,Agency Staff,0003,1550.68,Blue Arrow Limited,145492,19/06/2014,10203377
INSERTED DETAIL,Resources & Corporate Governance ,Street Cleansing,WSC00,Agency Staff,0003,1236.18,Blue Arrow Limited,145492,19/06/2014,10203377
INSERTED DETAIL,Resources & Corporate Governance ,Domestic Waste Collection,WWC00,Agency Staff,0003,3036.13,Blue Arrow Limited,145492,19/06/2014,10203377
INSERTED DETAIL,Resources & Corporate Governance ,Grounds Maintenance,WGM00,Agency Staff,0003,330.40,Blue Arrow Limited,145492,19/06/2014,10203566
INSERTED DETAIL,Resources & Corporate Governance,Housing Maintenance,WHM00,Agency Staff,0003,1781.19,Blue Arrow Limited,145492,19/06/2014,10203566
INSERTED DETAIL,Resources & Corporate Governance ,Street Cleansing,WSC00,Agency Staff,0003,976.01,Blue Arrow Limited,145492,19/06/2014,10203566
INSERTED DETAIL,Resources & Corporate Governance ,Domestic Waste Collection,WWC00,Agency Staff,0003,2712.48,Blue Arrow Limited,145492,19/06/2014,10203566
INSERTED DETAIL,Resources & Corporate Governance ,General Financial Services,GFS00,External Contractor & Operator,0742,18096.00,Grant Thornton UK LLP,145501,26/06/2014,10203660
INSERTED DETAIL,Resources & Corporate Governance,Corporate Property R&M,CPA01,R&M External Contractors,0100,643.00,ESM Power Limited,145695,12/06/2014,10203090
INSERTED DETAIL,Resources & Corporate Governance,Housing Maintenance,WHM00,External Contractor & Operator,0742,848.00,Mick Brown Plastering,146699,12/06/2014,10202534
INSERTED DETAIL,Resources & Corporate Governance,Housing Maintenance,WHM00,External Contractor & Operator,0742,490.00,Mick Brown Plastering,146699,05/06/2014,10202550
INSERTED DETAIL,Resources & Corporate Governance,Housing Maintenance,WHM00,External Contractor & Operator,0742,466.00,Mick Brown Plastering,146699,12/06/2014,10202813
INSERTED DETAIL,Resources & Corporate Governance,Housing Maintenance,WHM00,External Contractor & Operator,0742,668.00,Mick Brown Plastering,146699,12/06/2014,10203128
INSERTED DETAIL,Resources & Corporate Governance,Housing Maintenance,WHM00,External Contractor & Operator,0742,10750.00,Mick Brown Plastering,146699,19/06/2014,10203130
INSERTED DETAIL,Resources & Corporate Governance,Housing Maintenance,WHM00,External Contractor & Operator,0742,702.00,Mick Brown Plastering,146699,26/06/2014,10203678
INSERTED DETAIL,Resources & Corporate Governance,Housing Maintenance,WHM00,External Contractor & Operator,0742,866.00,Mick Brown Plastering,146699,26/06/2014,10203695
INSERTED DETAIL,Resources & Corporate Governance ,Retired Employees,RET00,Employers' Superannuation Contribution,0002,41500.00,WCC Pension Fund,146914,05/06/2014,10202787
INSERTED DETAIL,Resources & Corporate Governance ,Retired Employees,RET00,Employers' Superannuation Contribution,0002,41500.00,WCC Pension Fund,146914,26/06/2014,10203825
INSERTED DETAIL,Economy Development & Culture,Art Gallery and Museum,AGM00,Postage & Distribution,0370,2.28,TNT Post Midlands Ltd,146983,12/06/2014,10203094
INSERTED DETAIL,Economy Development & Culture,Building Control Services,BCS00,Postage & Distribution,0370,0.92,TNT Post Midlands Ltd,146983,12/06/2014,10203094
INSERTED DETAIL,Economy Development & Culture,Building Control Services Non-Fee Earning Account,BCS01,Postage & Distribution,0370,0.92,TNT Post Midlands Ltd,146983,12/06/2014,10203094
INSERTED DETAIL,Economy Development & Culture,Building Regulation Fee Earning Account,BCS99,Postage & Distribution,0370,16.50,TNT Post Midlands Ltd,146983,12/06/2014,10203094
INSERTED DETAIL,Resources & Corporate Governance,Central Business Support Services,CSS15,Postage & Distribution,0370,47.19,TNT Post Midlands Ltd,146983,12/06/2014,10203094
INSERTED DETAIL,Resources & Corporate Governance ,Council Tax and NNDR Collection,CTX01,Postage & Distribution,0370,181.76,TNT Post Midlands Ltd,146983,12/06/2014,10203094
INSERTED DETAIL,Resources & Corporate Governance ,Electoral Registration,ERG00,Postage & Distribution,0370,0.33,TNT Post Midlands Ltd,146983,12/06/2014,10203094
INSERTED DETAIL,Sustainable Inclusive Communities,Housing Benefit Administration,HBA00,Postage & Distribution,0370,145.53,TNT Post Midlands Ltd,146983,12/06/2014,10203094
INSERTED DETAIL,Housing Revenue Account ,Supervision and Management General,MAN00,Postage & Distribution,0370,87.45,TNT Post Midlands Ltd,146983,12/06/2014,10203094
INSERTED DETAIL,Resources & Corporate Governance ,General Administration,WAD00,Postage & Distribution,0370,5.55,TNT Post Midlands Ltd,146983,12/06/2014,10203094
INSERTED DETAIL,Economy Development & Culture,Building Control Services,BCS00,Postage & Distribution,0370,0.31,TNT Post Midlands Ltd,146983,26/06/2014,10203485
INSERTED DETAIL,Economy Development & Culture,Building Control Services Non-Fee Earning Account,BCS01,Postage & Distribution,0370,0.31,TNT Post Midlands Ltd,146983,26/06/2014,10203485
INSERTED DETAIL,Economy Development & Culture,Building Regulation Fee Earning Account,BCS99,Postage & Distribution,0370,5.63,TNT Post Midlands Ltd,146983,26/06/2014,10203485
INSERTED DETAIL,Resources & Corporate Governance,Central Business Support Services,CSS15,Postage & Distribution,0370,54.46,TNT Post Midlands Ltd,146983,26/06/2014,10203485
INSERTED DETAIL,Resources & Corporate Governance ,Council Tax and NNDR Collection,CTX01,Postage & Distribution,0370,333.12,TNT Post Midlands Ltd,146983,26/06/2014,10203485
INSERTED DETAIL,Resources & Corporate Governance ,Electoral Registration,ERG00,Postage & Distribution,0370,2.98,TNT Post Midlands Ltd,146983,26/06/2014,10203485
INSERTED DETAIL,Sustainable Inclusive Communities,Housing Benefit Administration,HBA00,Postage & Distribution,0370,285.20,TNT Post Midlands Ltd,146983,26/06/2014,10203485
INSERTED DETAIL,Housing Revenue Account ,Supervision and Management General,MAN00,Postage & Distribution,0370,39.18,TNT Post Midlands Ltd,146983,26/06/2014,10203485
INSERTED DETAIL,Resources & Corporate Governance ,General Administration,WAD00,Postage & Distribution,0370,5.36,TNT Post Midlands Ltd,146983,26/06/2014,10203485
INSERTED DETAIL,Resources & Corporate Governance,Housing Maintenance,WHM00,External Contractor & Operator,0742,3577.81,Intelligent Disabled Solutions Ltd,147081,12/06/2014,10202970
INSERTED DETAIL,Resources & Corporate Governance,Housing Maintenance,WHM00,External Contractor & Operator,0742,530.00,K A Cooke Limited,147120,19/06/2014,10203327
INSERTED DETAIL,Resources & Corporate Governance,Housing Maintenance,WHM00,External Contractor & Operator,0742,1860.00,K A Cooke Limited,147120,19/06/2014,10203328
INSERTED DETAIL,Resources & Corporate Governance,Housing Maintenance,WHM00,External Contractor & Operator,0742,3340.00,K A Cooke Limited,147120,19/06/2014,10203329
INSERTED DETAIL,Resources & Corporate Governance,Housing Maintenance,WHM00,External Contractor & Operator,0742,700.00,K A Cooke Limited,147120,19/06/2014,10203330
INSERTED DETAIL,Resources & Corporate Governance,Housing Maintenance,WHM00,External Contractor & Operator,0742,2170.00,K A Cooke Limited,147120,19/06/2014,10203622
INSERTED DETAIL,Resources & Corporate Governance,Housing Maintenance,WHM00,External Contractor & Operator,0742,700.00,K A Cooke Limited,147120,26/06/2014,10203785
INSERTED DETAIL,Resources & Corporate Governance,Housing Maintenance,WHM00,External Contractor & Operator,0742,840.00,K A Cooke Limited,147120,26/06/2014,10203786
INSERTED DETAIL,Resources & Corporate Governance,Housing Maintenance,WHM00,External Contractor & Operator,0742,1215.00,K A Cooke Limited,147120,26/06/2014,10203787
INSERTED DETAIL,Resources & Corporate Governance ,Domestic Waste Collection,WWC00,External Contractor & Operator,0742,1500.00,James Baxter Haulage Ltd,147159,12/06/2014,10203106
INSERTED DETAIL,Resources & Corporate Governance,Housing Maintenance,WHM00,External Contractor & Operator,0742,746.49,C H Electrical (Leics) Ltd,147209,12/06/2014,10202529
INSERTED DETAIL,Resources & Corporate Governance ,Domestic Waste Collection,WWC00,Contract Hire,0220,550.00,Trash UK Limited,147379,05/06/2014,10202760
INSERTED DETAIL,Resources & Corporate Governance ,Domestic Waste Collection,WWC00,Contract Hire,0220,550.00,Trash UK Limited,147379,05/06/2014,10202843
INSERTED DETAIL,Resources & Corporate Governance ,Domestic Waste Collection,WWC00,Contract Hire,0220,550.00,Trash UK Limited,147379,12/06/2014,10203302
INSERTED DETAIL,Resources & Corporate Governance ,Domestic Waste Collection,WWC00,Contract Hire,0220,550.00,Trash UK Limited,147379,19/06/2014,10203596
INSERTED DETAIL,Resources & Corporate Governance ,Domestic Waste Collection,WWC00,Contract Hire,0220,550.00,Trash UK Limited,147379,26/06/2014,10203848
INSERTED DETAIL,Resources & Corporate Governance,Housing Maintenance,WHM00,Materials,0303,424.03,Edwards Buildbase,147387,05/06/2014,10199698
INSERTED DETAIL,Resources & Corporate Governance,Housing Maintenance,WHM00,Materials,0303,508.92,Edwards Buildbase,147387,26/06/2014,10202831
INSERTED DETAIL,Resources & Corporate Governance,Housing Maintenance,WHM00,Materials,0303,423.24,Edwards Buildbase,147387,26/06/2014,10203765
INSERTED DETAIL,Economy Development & Culture,AGM Education,AGM03,Other Miscellaneous Expenses,0444,700.00,Jim Bond,147409,12/06/2014,10203176
INSERTED DETAIL,Resources & Corporate Governance,Housing Maintenance,WHM00,External Contractor & Operator,0742,506.40,Coventry Garage Doors,147883,12/06/2014,10203251
INSERTED DETAIL,Resources & Corporate Governance,Housing Maintenance,WHM00,External Contractor & Operator,0742,506.40,Coventry Garage Doors,147883,12/06/2014,10203252
INSERTED DETAIL,Resources & Corporate Governance ,TREE WORKS,WGM01,New Equipment,0300,416.40,Buxtons Limited,148015,12/06/2014,10202484
INSERTED DETAIL,Resources & Corporate Governance ,TREE WORKS,WGM01,Tools,0304,40.00,Buxtons Limited,148015,12/06/2014,10202484
INSERTED DETAIL,Resources & Corporate Governance ,TREE WORKS,WGM01,Personal Protective Clothing,0340,440.00,Buxtons Limited,148015,12/06/2014,10202484
INSERTED DETAIL,Resources & Corporate Governance,Housing Maintenance,WHM00,External Contractor & Operator,0742,600.00,Dean Hudson,148035,05/06/2014,10202648
INSERTED DETAIL,Resources & Corporate Governance,Housing Maintenance,WHM00,External Contractor & Operator,0742,517.50,Dean Hudson,148035,12/06/2014,10203253
INSERTED DETAIL,Resources & Corporate Governance,Housing Maintenance,WHM00,External Contractor & Operator,0742,570.00,Dean Hudson,148035,26/06/2014,10203948
INSERTED DETAIL,Sustainable Environment,Crematorium,CRM00,Recruitment Expenses,0012,19.95,Team Prevent UK Ltd,148151,05/06/2014,10202828
INSERTED DETAIL,Sustainable Environment,Regulatory Services,REG00,Recruitment Expenses,0012,19.95,Team Prevent UK Ltd,148151,05/06/2014,10202828
INSERTED DETAIL,Resources & Corporate Governance ,Grounds Maintenance,WGM00,Recruitment Expenses,0012,59.85,Team Prevent UK Ltd,148151,05/06/2014,10202828
INSERTED DETAIL,Resources & Corporate Governance ,TREE WORKS,WGM01,Recruitment Expenses,0012,19.95,Team Prevent UK Ltd,148151,05/06/2014,10202828
INSERTED DETAIL,Sustainable Inclusive Communities,Housing Benefit Administration,HBA00,Employee wellbeing/Other employee expenses,0021,170.00,Team Prevent UK Ltd,148151,05/06/2014,10202828
INSERTED DETAIL,Economy Development & Culture,Play Projects (revenue),LSD09,Employee wellbeing/Other employee expenses,0021,85.00,Team Prevent UK Ltd,148151,05/06/2014,10202828
INSERTED DETAIL,Sustainable Environment,Regulatory Services,REG00,Employee wellbeing/Other employee expenses,0021,17.50,Team Prevent UK Ltd,148151,05/06/2014,10202828
INSERTED DETAIL,Resources & Corporate Governance,Housing Maintenance,WHM00,Employee wellbeing/Other employee expenses,0021,195.00,Team Prevent UK Ltd,148151,05/06/2014,10202828
INSERTED DETAIL,Resources & Corporate Governance ,Garage Internal,WVR01,Employee wellbeing/Other employee expenses,0021,85.00,Team Prevent UK Ltd,148151,05/06/2014,10202828
INSERTED DETAIL,Resources & Corporate Governance ,Domestic Waste Collection,WWC00,Employee wellbeing/Other employee expenses,0021,290.00,Team Prevent UK Ltd,148151,05/06/2014,10202828
INSERTED DETAIL,Housing Revenue Account ,Sheltered Housing,AGP00,Employee wellbeing/Other employee expenses,0021,104.00,Team Prevent UK Ltd,148151,19/06/2014,10203727
INSERTED DETAIL,Resources & Corporate Governance,Business Support Services,CSS10,Employee wellbeing/Other employee expenses,0021,85.00,Team Prevent UK Ltd,148151,19/06/2014,10203727
INSERTED DETAIL,Economy Development & Culture,Planning General/Income,PLN00,Employee wellbeing/Other employee expenses,0021,104.00,Team Prevent UK Ltd,148151,19/06/2014,10203727
INSERTED DETAIL,Sustainable Environment,Regulatory Services,REG00,Employee wellbeing/Other employee expenses,0021,255.00,Team Prevent UK Ltd,148151,19/06/2014,10203727
INSERTED DETAIL,Resources & Corporate Governance ,Grounds Maintenance,WGM00,Employee wellbeing/Other employee expenses,0021,396.40,Team Prevent UK Ltd,148151,19/06/2014,10203727
INSERTED DETAIL,Resources & Corporate Governance,Housing Maintenance,WHM00,Employee wellbeing/Other employee expenses,0021,915.00,Team Prevent UK Ltd,148151,19/06/2014,10203727
INSERTED DETAIL,Resources & Corporate Governance ,Street Cleansing,WSC00,Employee wellbeing/Other employee expenses,0021,85.00,Team Prevent UK Ltd,148151,19/06/2014,10203727
INSERTED DETAIL,Resources & Corporate Governance ,Domestic Waste Collection,WWC00,Employee wellbeing/Other employee expenses,0021,85.00,Team Prevent UK Ltd,148151,19/06/2014,10203727
INSERTED DETAIL,Sustainable Inclusive Communities,Sewage Disposal Plant,SDP00,R&M External Contractors,0100,1140.00,Suckcess,148285,05/06/2014,10203067
INSERTED DETAIL,Sustainable Inclusive Communities,Sewage Disposal Plant,SDP00,R&M External Contractors,0100,600.00,Suckcess,148285,26/06/2014,10203244
INSERTED DETAIL,Sustainable Inclusive Communities,Sewage Disposal Plant,SDP00,R&M External Contractors,0100,600.00,Suckcess,148285,26/06/2014,10203245
INSERTED DETAIL,Resources & Corporate Governance ,General Administration,WAD00,Training fees,0011,731.00,Park Hill Training Ltd,148323,19/06/2014,10203606
INSERTED DETAIL,Capital Programme ,Pettiver Crescent,PCH00,Capital Contract Payments,5000,1599.37,"Gotch, Saunders & Surridge LLP , t/a GSS Architecture",148432,05/06/2014,10202766
INSERTED DETAIL,Capital Programme ,Woodside Gypsy & Traveller Caravan Site,RNA05,Capital Contract Payments,5000,1925.00,"Gotch, Saunders & Surridge LLP , t/a GSS Architecture",148432,05/06/2014,10202767
INSERTED DETAIL,Sustainable Environment ,Parks,PKS00,Maintenance of Equipment,0301,1370.00,J P Landscapes & Construction Ltd,148502,19/06/2014,10203597
INSERTED DETAIL,Capital Programme ,Open Spaces Refurbishment,LEI08,Capital Contract Payments,5000,2415.00,Kova Landscape Ltd,148635,05/06/2014,10202759
INSERTED DETAIL,Economy Development & Culture,Art Gallery and Museum,AGM00,Contribution to Provisions,0443,2500.00,Robert Priseman,148852,19/06/2014,10203550
INSERTED DETAIL,Economy Development & Culture,AGM Exhibitions/Outreach,AGM02,Other Miscellaneous Expenses,0444,1750.00,Michele Walker,148854,19/06/2014,10203502
INSERTED DETAIL,Economy Development & Culture,AGM Exhibitions/Outreach,AGM02,Other Miscellaneous Expenses,0444,1084.64,Michele Walker,148854,19/06/2014,10203755
INSERTED DETAIL,Housing Revenue Account ,Unplanned Maintenance and Repair,UMR00,R&M External Contractors,0100,268.31,Robert Heath Heating Ltd,148858,12/06/2014,10203117
INSERTED DETAIL,Housing Revenue Account ,Repairs and Maintenance - Void works,UMR09,R&M External Contractors,0100,477.51,Robert Heath Heating Ltd,148858,12/06/2014,10203117
INSERTED DETAIL,Sustainable Environment ,Grass Cutting,PKS13,External Contractor & Operator,0742,2068.00,Shilton & Barnacle Parish Council,148879,05/06/2014,10202894
INSERTED DETAIL,Resources & Corporate Governance,Central Business Support Services,CSS15,Photocopying,0354,1386.69,Xerox Finance Ltd,148940,05/06/2014,10202697
INSERTED DETAIL,Resources & Corporate Governance,Central Business Support Services,CSS15,Photocopying,0354,3119.88,Xerox Finance Ltd,148940,19/06/2014,10202698
INSERTED DETAIL,Resources & Corporate Governance,Corporate Property R&M,CPA01,R&M External Contractors,0100,730.00,FiltaSonix UK Ltd,148964,19/06/2014,10203292
INSERTED DETAIL,Economy Development & Culture,The Benn Hall,BHL00,Purchases for Resale,0305,831.60,Matthew Clark Wholesale Ltd,148975,12/06/2014,10203149
INSERTED DETAIL,Economy Development & Culture,The Benn Hall,BHL00,Purchases for Resale,0305,609.56,Matthew Clark Wholesale Ltd,148975,26/06/2014,10204059
INSERTED DETAIL,Housing Revenue Account ,Repairs and Maintenance - Void works,UMR09,R&M External Contractors,0100,1630.00,Superclean Services Wothorpe,149153,05/06/2014,10202681
INSERTED DETAIL,Housing Revenue Account ,Sheltered Housing,AGP00,Contract Cleaning,0170,11850.58,Superclean Services Wothorpe,149153,05/06/2014,10202789
INSERTED DETAIL,Sustainable Inclusive Communities,Housing Options Team,HOT00,Contract Cleaning,0170,112.51,Superclean Services Wothorpe,149153,05/06/2014,10202789
INSERTED DETAIL,Housing Revenue Account ,Estate Management,MAN22,Contract Cleaning,0170,2552.47,Superclean Services Wothorpe,149153,05/06/2014,10202789
INSERTED DETAIL,Housing Revenue Account ,Multi-Storey Flats,MSF00,Contract Cleaning,0170,1434.45,Superclean Services Wothorpe,149153,05/06/2014,10202789
INSERTED DETAIL,Resources & Corporate Governance ,Town Hall,OFF00,Contract Cleaning,0170,4195.83,Superclean Services Wothorpe,149153,05/06/2014,10202794
INSERTED DETAIL,Sustainable Environment ,Parks,PKS00,Contract Cleaning,0170,200.00,Superclean Services Wothorpe,149153,05/06/2014,10202794
INSERTED DETAIL,Resources & Corporate Governance ,WSU Depot,WDP00,Contract Cleaning,0170,395.83,Superclean Services Wothorpe,149153,05/06/2014,10202794
INSERTED DETAIL,Housing Revenue Account ,Repairs and Maintenance - Void works,UMR09,R&M External Contractors,0100,1970.00,Superclean Services Wothorpe,149153,05/06/2014,10203022
INSERTED DETAIL,Housing Revenue Account ,Repairs and Maintenance - Void works,UMR09,R&M External Contractors,0100,2480.00,Superclean Services Wothorpe,149153,05/06/2014,10203023
INSERTED DETAIL,Housing Revenue Account ,Repairs and Maintenance - Void works,UMR09,R&M External Contractors,0100,2185.00,Superclean Services Wothorpe,149153,05/06/2014,10203024
INSERTED DETAIL,Housing Revenue Account ,Repairs and Maintenance - Void works,UMR09,R&M External Contractors,0100,1790.00,Superclean Services Wothorpe,149153,05/06/2014,10203112
INSERTED DETAIL,Economy Development & Culture,The Benn Hall,BHL00,Special Events/Activities,0447,720.00,Gag Reflex Ltd,149264,05/06/2014,10202989
INSERTED DETAIL,Capital Programme ,Pettiver Crescent,PCH00,Capital Contract Payments,5000,206940.84,Wates Construction Ltd,149267,05/06/2014,10203075
INSERTED DETAIL,Resources & Corporate Governance,Housing Maintenance,WHM00,Materials,0303,321.40,Tom Tom International BV,149311,12/06/2014,10203332
INSERTED DETAIL,Resources & Corporate Governance ,Street Cleansing,WSC00,Materials,0303,321.40,Tom Tom International BV,149311,12/06/2014,10203332
INSERTED DETAIL,Resources & Corporate Governance,Housing Maintenance,WHM00,External Contractor & Operator,0742,850.00,H G Leslie & Son,149335,12/06/2014,10202644
INSERTED DETAIL,Resources & Corporate Governance,Housing Maintenance,WHM00,Materials,0303,522.16,Sprint Industrial Supplies Ltd,149342,05/06/2014,10201015
INSERTED DETAIL,Capital Programme ,Open Spaces Refurbishment,LEI08,Capital Contract Payments,5000,8391.00,The Great Outdoor Gym Company Ltd,149509,19/06/2014,10201531
INSERTED DETAIL,Sustainable Environment,Crematorium,CRM00,Training fees,0011,1500.00,Facultatieve Technologies Limited,149571,19/06/2014,10203511
INSERTED DETAIL,Sustainable Environment ,Land Drainage General,LDR00,External Contractor & Operator,0742,742.50,MPS Builders Merchant Ltd,149572,19/06/2014,10203558
INSERTED DETAIL,Sustainable Environment,Crematorium,CRM00,Hospitality,0331,1930.00,Harbury Marquee Hire,149613,19/06/2014,10203563
INSERTED DETAIL,Resources & Corporate Governance ,Human Resources Centralised Services,RES31,Training fees,0011,765.00,Achilles Information Ltd,149630,26/06/2014,10203690
INSERTED DETAIL,Economy Development & Culture,The Benn Hall,BHL00,New Equipment,0300,4248.00,Haywoods Contracts Ltd,149653,19/06/2014,10203439
INSERTED DETAIL,Resources & Corporate Governance ,Customer and Information Strategy,CIS10,Training fees,0011,600.00,The Training Foundation,149676,19/06/2014,10203294
INSERTED DETAIL,Sustainable Environment,Crematorium,CRM00,Organist Fees,0414,702.50,Tracey Daulman,149686,19/06/2014,10203664
INSERTED DETAIL,Sustainable Environment,Crematorium,CRM00,External Contractor & Operator,0742,5128.00,A A Gibson,149696,12/06/2014,10203108
INSERTED DETAIL,Resources & Corporate Governance ,Human Resources Centralised Services,RES31,Training fees,0011,1930.00,Visionary Consultancy & Training Ltd,149778,12/06/2014,10203151
INSERTED DETAIL,Resources & Corporate Governance ,European Elections,ELC04,Training fees,0011,2848.50,Halarose Ltd,149788,12/06/2014,10202796
INSERTED DETAIL,Economy Development & Culture,The Benn Hall,BHL00,Events Tickets - Standard Rated,1404,2495.00,Rugby Christian Fellowship,149790,05/06/2014,10202824
INSERTED DETAIL,Resources & Corporate Governance ,Human Resources Centralised Services,RES31,Employee wellbeing/Other employee expenses,0021,500.00,Harrington Enterprises,149793,05/06/2014,10202871
INSERTED DETAIL,Economy Development & Culture,AGM Education,AGM03,Other Miscellaneous Expenses,0444,563.00,Black Country Atelier Ltd,149795,05/06/2014,10203011
INSERTED DETAIL,Sustainable Environment ,Parks,PKS00,New Equipment,0300,1023.00,MOJ Shared Services,149798,12/06/2014,10203081
INSERTED DETAIL,Resources & Corporate Governance ,Electoral Registration,ERG00,IT Capital Expenditure,5025,4800.00,Ascot Business Solutions Ltd,149820,26/06/2014,10203688
INSERTED DETAIL,Economy Development & Culture,Art Gallery and Museum,AGM00,Contribution to Provisions,0443,1600.00,Alexander Adams,149831,19/06/2014,10203630
INSERTED DETAIL,Housing Revenue Account ,Supervision and Management General,MAN00,Subscriptions,0421,4104.45,The Housing Ombudsman,149843,26/06/2014,10203760
INSERTED DETAIL,Housing Revenue Account ,Unplanned Maintenance and Repair,UMR00,R&M External Contractors,0100,1980.00,PTS Rugby,149845,20/06/2014,10203794
INSERTED DETAIL,Sustainable Environment,Crematorium,CRM00,Consultancy Costs,0740,513.75,Peter Linsell Management Consultants,149849,26/06/2014,10203907
INSERTED DETAIL,Sustainable Environment,Crematorium,CRM00,Consultancy Costs,0740,685.00,Peter Linsell Management Consultants,149849,26/06/2014,10203908
detail,Sustainable Environment,Crematorium,CRM00,Consultancy Costs,0740,685.00,Peter Linsell Management Consultants,149849,26/06/2014,10203909
,Resources & Corporate Governance,Housing Maintenance,WHM00,Tools,0304,1209.59,Powertools2u,,09/06/2014,32422
,,Domestic Waste Collection,WWC00,Vehicle Running Costs,0201,652.50,Post Office Ltd,,09/06/2014,32422
,,Balance Sheet,BS,Cov & Warks Pooling Fund,9476,1406994.00,Cov & Warks Pooling Fund,,18/06/2014,32327
,,Balance Sheet,BS,Business Rate Retention Scheme payment,9476,2070454,CLG,,19/06/2014,32332
,,Balance Sheet,BS,Business Rate Retention Scheme payment,9476,414702,WCC County Fund,,19/06/2014,32331
,Resources & Corporate Governance,General Financial Services,GFS00,Payment Card Costs,0445,1236.57,Capita,,26/06/2014,32401
